Workbook

Sheet Outputs Monthly
N1: Annual Financial Receipts
B2: County Fiscal Year 2014-15 | N2: Total Number of Financial Receipts for the Year: | O2: Projected | P2: Actual
B3: Outputs Monthly Report Form for CCOC | O3: =LOOKUP(D8,'DownloadBudgetData (1)'!B2:B68,'DownloadBudgetData (1)'!AG2:AG68) -> 453519
N4: Financial Receipts are totaled for the full fiscal year and entered here annually. This annual total is to be reported on the September submission.
C6: Report for the Month of: | D6: Jun
C7: Version #: | D7: 1
C8: County: | D8: Brevard | F8: Contact: | G8: Michelle Levar | J8: Telephone: | K8: 321-633-7782 | M8: E-mail: | N8: michelle.levar@brevardclerk.us
F11: Criminal | M11: Civil
D12: Circuit | E12: County | F12: Juvenile Delinquency | G12: Traffic | H12: Total | J12: Circuit | K12: County | L12: Traffic | M12: Probate | N12: Family | O12: Juvenile Dependency | P12: Total | R12: Grand Total
B13: Projections
C14: Cases/Defendants | D14: =LOOKUP(D8,'DownloadBudgetData (1)'!B2:B68,'DownloadBudgetData (1)'!C2:C68) -> 9500 | E14: =LOOKUP(D8,'DownloadBudgetData (1)'!B2:B68,'DownloadBudgetData (1)'!D2:D68) -> 10500 | F14: =LOOKUP(D8,'DownloadBudgetData (1)'!B2:B68,'DownloadBudgetData (1)'!E2:E68) -> 1800 | G14: =LOOKUP(D8,'DownloadBudgetData (1)'!B2:B68,'DownloadBudgetData (1)'!F2:F68) -> 9000 | H14: =SUM(D14:G14) -> 30800 | J14: =LOOKUP(D8,'DownloadBudgetData (1)'!B2:B68,'DownloadBudgetData (1)'!G2:G68) -> 6000 | K14: =LOOKUP(D8,'DownloadBudgetData (1)'!B2:B68,'DownloadBudgetData (1)'!H2:H68) -> 7000 | L14: =LOOKUP(D8,'DownloadBudgetData (1)'!B2:B68,'DownloadBudgetData (1)'!L2:L68) -> 59000 | M14: =LOOKUP(D8,'DownloadBudgetData (1)'!B2:B68,'DownloadBudgetData (1)'!I2:I68) -> 4500 | N14: =LOOKUP(D8,'DownloadBudgetData (1)'!B2:B68,'DownloadBudgetData (1)'!J2:J68) -> 7500 | O14: =LOOKUP(D8,'DownloadBudgetData (1)'!B2:B68,'DownloadBudgetData (1)'!K2:K68) -> 300 | P14: =SUM(J14:O14) -> 84300 | R14: =H14+P14 -> 115100
C15: Reopenings | D15: =LOOKUP(D8,'DownloadBudgetData (1)'!B2:B68,'DownloadBudgetData (1)'!M2:M68) -> 7600 | E15: =LOOKUP(D8,'DownloadBudgetData (1)'!B2:B68,'DownloadBudgetData (1)'!N2:N68) -> 2000 | F15: =LOOKUP(D8,'DownloadBudgetData (1)'!B2:B68,'DownloadBudgetData (1)'!O2:O68) -> 2000 | G15: =LOOKUP(D8,'DownloadBudgetData (1)'!B2:B68,'DownloadBudgetData (1)'!P2:P68) -> 2100 | H15: =SUM(D15:G15) -> 13700 | J15: =LOOKUP(D8,'DownloadBudgetData (1)'!B2:B68,'DownloadBudgetData (1)'!Q2:Q68) -> 5200 | K15: =LOOKUP(D8,'DownloadBudgetData (1)'!B2:B68,'DownloadBudgetData (1)'!R2:R68) -> 3800 | L15: 0 | M15: =LOOKUP(D8,'DownloadBudgetData (1)'!B2:B68,'DownloadBudgetData (1)'!S2:S68) -> 1800 | N15: =LOOKUP(D8,'DownloadBudgetData (1)'!B2:B68,'DownloadBudgetData (1)'!T2:T68) -> 7300 | O15: =LOOKUP(D8,'DownloadBudgetData (1)'!B2:B68,'DownloadBudgetData (1)'!U2:U68) -> 450 | P15: =SUM(J15:O15) -> 18550 | R15: =H15+P15 -> 32250
C16: NOA's | D16: =LOOKUP(D8,'DownloadBudgetData (1)'!B2:B68,'DownloadBudgetData (1)'!W2:W68) -> 600 | E16: =LOOKUP(D8,'DownloadBudgetData (1)'!B2:B68,'DownloadBudgetData (1)'!X2:X68) -> 25 | F16: =LOOKUP(D8,'DownloadBudgetData (1)'!B2:B68,'DownloadBudgetData (1)'!Y2:Y68) -> 3 | G16: =LOOKUP(D8,'DownloadBudgetData (1)'!B2:B68,'DownloadBudgetData (1)'!Z2:Z68) -> 25 | H16: =SUM(D16:G16) -> 653 | J16: =LOOKUP(D8,'DownloadBudgetData (1)'!B2:B68,'DownloadBudgetData (1)'!AA2:AA68) -> 80 | K16: =LOOKUP(D8,'DownloadBudgetData (1)'!B2:B68,'DownloadBudgetData (1)'!AB2:AB68) -> 20 | L16: =LOOKUP(D8,'DownloadBudgetData (1)'!B2:B68,'DownloadBudgetData (1)'!AF2:AF68) -> 15 | M16: =LOOKUP(D8,'DownloadBudgetData (1)'!B2:B68,'DownloadBudgetData (1)'!AC2:AC68) -> 10 | N16: =LOOKUP(D8,'DownloadBudgetData (1)'!B2:B68,'DownloadBudgetData (1)'!AD2:AD68) -> 35 | O16: =LOOKUP(D8,'DownloadBudgetData (1)'!B2:B68,'DownloadBudgetData (1)'!AE2:AE68) -> 20 | P16: 180 | R16: 833
B17: October 2014
C18: Cases/Defendants | D18: 635 | E18: 880 | F18: 216 | G18: 553 | H18: =SUM(D18:G18) -> 2284 | J18: 365 | K18: 736 | L18: 4257 | M18: 399 | N18: 656 | O18: 41 | P18: 6454 | R18: 8738
C19: Reopenings | D19: 781 | E19: 220 | F19: 252 | G19: 147 | H19: =SUM(D19:G19) -> 1400 | J19: 640 | K19: 273 | L19: 0 | M19: 194 | N19: 550 | O19: 60 | P19: 1717 | R19: 3117
C20: NOA's | D20: 44 | E20: 1 | F20: 0 | G20: 4 | H20: =SUM(D20:G20) -> 49 | J20: 13 | K20: 2 | L20: 0 | M20: 0 | N20: 6 | O20: 1 | P20: 22 | R20: 71 | ZZ20: PABS4.0
B21: November 2014
C22: Cases/Defendants | D22: 586 | E22: 646 | F22: 141 | G22: 499 | H22: =SUM(D22:G22) -> 1872 | J22: 311 | K22: 479 | L22: 3572 | M22: 265 | N22: 440 | O22: 33 | P22: 5100 | R22: 6972
C23: Reopenings | D23: 575 | E23: 120 | F23: 193 | G23: 123 | H23: =SUM(D23:G23) -> 1011 | J23: 493 | K23: 253 | L23: 0 | M23: 150 | N23: 715 | O23: 52 | P23: 1663 | R23: 2674
C24: NOA's | D24: 24 | E24: 2 | F24: 0 | G24: 4 | H24: =SUM(D24:G24) -> 30 | J24: 6 | K24: 1 | L24: 0 | M24: 0 | N24: 1 | O24: 3 | P24: 11 | R24: 41
B25: December 2014
C26: Cases/Defendants | D26: 554 | E26: 808 | F26: 144 | G26: 510 | H26: =SUM(D26:G26) -> 2016 | J26: 372 | K26: 612 | L26: 3851 | M26: 358 | N26: 498 | O26: 29 | P26: 5720 | R26: 7736
C27: Reopenings | D27: 623 | E27: 147 | F27: 167 | G27: 133 | H27: =SUM(D27:G27) -> 1070 | J27: 512 | K27: 232 | L27: 0 | M27: 162 | N27: 672 | O27: 50 | P27: 1628 | R27: 2698
C28: NOA's | D28: 45 | E28: 2 | F28: 0 | G28: 2 | H28: =SUM(D28:G28) -> 49 | J28: 10 | K28: 0 | L28: 0 | M28: 0 | N28: 2 | O28: 0 | P28: 12 | R28: 61
B29: January 2015
C30: Cases/Defendants | D30: 661 | E30: 793 | F30: 166 | G30: 578 | H30: =SUM(D30:G30) -> 2198 | J30: 352 | K30: 901 | L30: 3289 | M30: 390 | N30: 528 | O30: 56 | P30: 5516 | R30: 7714
C31: Reopenings | D31: 664 | E31: 176 | F31: 235 | G31: 171 | H31: =SUM(D31:G31) -> 1246 | J31: 591 | K31: 299 | L31: 0 | M31: 196 | N31: 983 | O31: 45 | P31: 2114 | R31: 3360
C32: NOA's | D32: 27 | E32: 2 | F32: 0 | G32: 4 | H32: =SUM(D32:G32) -> 33 | J32: 12 | K32: 0 | L32: 1 | M32: 0 | N32: 0 | O32: 0 | P32: 13 | R32: 46
B33: February 2015
C34: Cases/Defendants | D34: 567 | E34: 708 | F34: 138 | G34: 509 | H34: =SUM(D34:G34) -> 1922 | J34: 349 | K34: 748 | L34: 3932 | M34: 401 | N34: 504 | O34: 38 | P34: 5972 | R34: 7894
C35: Reopenings | D35: 641 | E35: 147 | F35: 281 | G35: 152 | H35: =SUM(D35:G35) -> 1221 | J35: 440 | K35: 277 | L35: 0 | M35: 174 | N35: 712 | O35: 29 | P35: 1632 | R35: 2853
C36: NOA's | D36: 25 | E36: 3 | F36: 0 | G36: 4 | H36: =SUM(D36:G36) -> 32 | J36: 4 | K36: 1 | L36: 0 | M36: 1 | N36: 0 | O36: 7 | P36: 13 | R36: 45
B37: March 2015
C38: Cases/Defendants | D38: 688 | E38: 856 | F38: 134 | G38: 542 | H38: =SUM(D38:G38) -> 2220 | J38: 416 | K38: 633 | L38: 3995 | M38: 477 | N38: 669 | O38: 51 | P38: 6241 | R38: 8461
C39: Reopenings | D39: 722 | E39: 189 | F39: 233 | G39: 175 | H39: =SUM(D39:G39) -> 1319 | J39: 517 | K39: 305 | L39: 0 | M39: 174 | N39: 775 | O39: 56 | P39: 1827 | R39: 3146
C40: NOA's | D40: 32 | E40: 2 | F40: 0 | G40: 1 | H40: =SUM(D40:G40) -> 35 | J40: 7 | K40: 1 | L40: 1 | M40: 2 | N40: 3 | O40: 1 | P40: 15 | R40: 50
B41: April 2015
C42: Cases/Defendants | D42: 650 | E42: 848 | F42: 120 | G42: 431 | H42: =SUM(D42:G42) -> 2049 | J42: 374 | K42: 790 | L42: 3632 | M42: 459 | N42: 640 | O42: 27 | P42: 5922 | R42: 7971
C43: Reopenings | D43: 719 | E43: 150 | F43: 273 | G43: 212 | H43: =SUM(D43:G43) -> 1354 | J43: 498 | K43: 315 | L43: 0 | M43: 221 | N43: 721 | O43: 37 | P43: 1792 | R43: 3146
C44: NOA's | D44: 48 | E44: 2 | F44: 0 | G44: 5 | H44: =SUM(D44:G44) -> 55 | J44: 4 | K44: 0 | L44: 0 | M44: 0 | N44: 4 | O44: 0 | P44: 8 | R44: 63
B45: May 2015
C46: Cases/Defendants | D46: 651 | E46: 903 | F46: 188 | G46: 460 | H46: =SUM(D46:G46) -> 2202 | J46: 352 | K46: 645 | L46: 3408 | M46: 390 | N46: 575 | O46: 42 | P46: 5412 | R46: 7614
C47: Reopenings | D47: 667 | E47: 126 | F47: 284 | G47: 151 | H47: =SUM(D47:G47) -> 1228 | J47: 451 | K47: 316 | L47: 0 | M47: 179 | N47: 652 | O47: 49 | P47: 1647 | R47: 2875
C48: NOA's | D48: 32 | E48: 0 | F48: 0 | G48: 2 | H48: =SUM(D48:G48) -> 34 | J48: 12 | K48: 0 | L48: 0 | M48: 1 | N48: 4 | O48: 2 | P48: 19 | R48: 53
B49: June 2015
C50: Cases/Defendants | D50: 685 | E50: 826 | F50: 165 | G50: 542 | H50: =SUM(D50:G50) -> 2218 | J50: 337 | K50: 791 | L50: 3765 | M50: 414 | N50: 662 | O50: 32 | P50: 6001 | R50: 8219
C51: Reopenings | D51: 666 | E51: 172 | F51: 335 | G51: 162 | H51: =SUM(D51:G51) -> 1335 | J51: 538 | K51: 282 | L51: 0 | M51: 223 | N51: 755 | O51: 65 | P51: 1863 | R51: 3198
C52: NOA's | D52: 21 | E52: 3 | F52: 0 | G52: 3 | H52: =SUM(D52:G52) -> 27 | J52: 10 | K52: 3 | L52: 1 | M52: 1 | N52: 1 | O52: 3 | P52: 19 | R52: 46
B53: July 2015
C54: Cases/Defendants | D54: 662 | E54: 878 | F54: 167 | G54: 606 | H54: =SUM(D54:G54) -> 2313 | J54: 409 | K54: 690 | L54: 3563 | M54: 416 | N54: 582 | O54: 26 | P54: =SUM(J54:O54) -> 5686 | R54: =H54+P54 -> 7999
C55: Reopenings | D55: 639 | E55: 156 | F55: 342 | G55: 174 | H55: =SUM(D55:G55) -> 1311 | J55: 476 | K55: 290 | L55: 0 | M55: 209 | N55: 798 | O55: 71 | P55: =SUM(J55:O55) -> 1844 | R55: =H55+P55 -> 3155
C56: NOA's | D56: 39 | E56: 2 | F56: 0 | G56: 4 | H56: =SUM(D56:G56) -> 45 | J56: 9 | K56: 3 | L56: 0 | M56: 0 | N56: 0 | O56: 5 | P56: =SUM(J56:O56) -> 17 | R56: =H56+P56 -> 62
B57: August 2015
C58: Cases/Defendants | H58: =SUM(D58:G58) -> 0 | P58: =SUM(J58:O58) -> 0 | R58: =H58+P58 -> 0
C59: Reopenings | H59: =SUM(D59:G59) -> 0 | L59: 0 | P59: =SUM(J59:O59) -> 0 | R59: =H59+P59 -> 0
C60: NOA's | H60: =SUM(D60:G60) -> 0 | P60: =SUM(J60:O60) -> 0 | R60: =H60+P60 -> 0
B61: September 2015
C62: Cases/Defendants | H62: =SUM(D62:G62) -> 0 | P62: =SUM(J62:O62) -> 0 | R62: =H62+P62 -> 0
C63: Reopenings | H63: =SUM(D63:G63) -> 0 | L63: 0 | P63: =SUM(J63:O63) -> 0 | R63: =H63+P63 -> 0
C64: NOA's | H64: =SUM(D64:G64) -> 0 | P64: =SUM(J64:O64) -> 0 | R64: =H64+P64 -> 0
B65: Year-to-Date
C66: Cases/Defendants | D66: =SUM(D54+D58+D62+D18+D22+D26+D30+D34+D38+D42+D46+D50) -> 6339 | E66: 8146 | F66: 1579 | G66: 5230 | H66: =SUM(D66:G66) -> 21294 | J66: =SUM(J54+J58+J62+J18+J22+J26+J30+J34+J38+J42+J46+J50) -> 3637 | K66: 7025 | L66: 37264 | M66: 3969 | N66: 5754 | O66: 375 | P66: 58024 | R66: 79318
C67: Reopenings | D67: 6697 | E67: 1603 | F67: 2595 | G67: 1600 | H67: =SUM(D67:G67) -> 12495 | J67: 5156 | K67: 2842 | L67: 0 | M67: 1882 | N67: 7333 | O67: 514 | P67: 17727 | R67: 30222
C68: NOA's | D68: 337 | E68: 19 | F68: 0 | G68: 33 | H68: =SUM(D68:G68) -> 389 | J68: 87 | K68: 11 | L68: 3 | M68: 5 | N68: 21 | O68: 22 | P68: 149 | R68: 538
B69: Year-to-Date % of Projections
C70: Cases/Defendants | D70: =D66/D14 -> 0.6672631579 | E70: 0.7758095238 | F70: 0.8772222222 | G70: 0.5811111111 | H70: 0.6913636364 | J70: =J66/J14 -> 0.6061666667 | K70: 1.003571429 | L70: 0.6315932203 | M70: 0.882 | N70: 0.7672 | O70: 1.25 | P70: 0.6883036773 | R70: =R66/R14 -> 0.6891225022
C71: Reopenings | D71: 0.8811842105 | E71: 0.8015 | F71: 1.2975 | G71: 0.7619047619 | H71: 0.9120437956 | J71: =J67/J15 -> 0.9915384615 | K71: =K67/K15 -> 0.7478947368 | L71: 0 | M71: =M67/M15 -> 1.045555556 | N71: 1.004520548 | O71: 1.142222222 | P71: 0.9556334232 | R71: =R67/R15 -> 0.9371162791
C72: NOA's | D72: 0.5616666667 | E72: 0.76 | F72: 0 | G72: 1.32 | H72: 0.595712098 | J72: =J68/J16 -> 1.0875 | K72: =K68/K16 -> 0.55 | L72: =L68/L16 -> 0.2 | M72: 0.5 | N72: 0.6 | O72: 1.1 | P72: 0.8277777778 | R72: =R68/R16 -> 0.6458583433
V77: Alachua | W77: Oct | X77: 1
V78: Baker | W78: Nov | X78: 2
V79: Bay | W79: Dec | X79: 3
V80: Bradford | W80: Jan | X80: 4
V81: Brevard | W81: Feb | X81: 5
V82: Broward | W82: Mar | X82: 6
V83: Calhoun | W83: Apr | X83: 7
V84: Charlotte | W84: May | X84: 8
V85: Citrus | W85: Jun | X85: 9
V86: Clay | W86: Jul | X86: 10
V87: Collier | W87: Aug
V88: Columbia | W88: Sep
V89: Dade
V90: Desoto
V91: Dixie
V92: Duval
V93: Escambia
V94: Flagler
V95: Franklin
V96: Gadsden
V97: Gilchrist
V98: Glades
V99: Gulf
V100: Hamilton
V101: Hardee
V102: Hendry
V103: Hernando
V104: Highlands
V105: Hillsborough
V106: Holmes
V107: Indian River
V108: Jackson
V109: Jefferson
V110: Lafayette
V111: Lake
V112: Lee
V113: Leon
V114: Levy
V115: Liberty
V116: Madison
V117: Manatee
V118: Marion
V119: Martin
V120: Monroe
V121: Nassau
V122: Okaloosa
V123: Okeechobee
V124: Orange
V125: Osceola
V126: Palm Beach
V127: Pasco
V128: Pinellas
V129: Polk
V130: Putnam
V131: Santa Rosa
V132: Sarasota
V133: Seminole
V134: St. Johns
V135: St. Lucie
V136: Sumter
V137: Suwannee
V138: Taylor
V139: Union
V140: Volusia
V141: Wakulla
V142: Walton
V143: Washington

Sheet DownloadBudgetData (1) (hidden)
A1: FiscalYear | B1: County | C1: Outputs_NewCases_CrimCir | D1: Outputs_NewCases_CrimCounty | E1: Outputs_NewCases_CrimJuvDel | F1: Outputs_NewCases_CrimTraf | G1: Outputs_NewCases_CivCir | H1: Outputs_NewCases_CivCounty | I1: Outputs_NewCases_CivProbate | J1: Outputs_NewCases_CivFamily | K1: Outputs_NewCases_CivJuvDep | L1: Outputs_NewCases_CivTraf | M1: Outputs_Reopens_CrimCir | N1: Outputs_Reopens_CrimCounty | O1: Outputs_Reopens_CrimJuvDel | P1: Outputs_Reopens_CrimTraf | Q1: Outputs_Reopens_CivCir | R1: Outputs_Reopens_CivCounty | S1: Outputs_Reopens_CivProbate | T1: Outputs_Reopens_CivFamily | U1: Outputs_Reopens_CivJuvDep | V1: Outputs_Reopens_CivTraf | W1: Outputs_NoticesOfAppeal_CrimCir | X1: Outputs_NoticesOfAppeal_CrimCounty | Y1: Outputs_NoticesOfAppeal_CrimJuvDel | Z1: Outputs_NoticesOfAppeal_CrimTraf | AA1: Outputs_NoticesOfAppeal_CivCir | AB1: Outputs_NoticesOfAppeal_CivCounty | AC1: Outputs_NoticesOfAppeal_CivProbate | AD1: Outputs_NoticesOfAppeal_CivFamily | AE1: Outputs_NoticesOfAppeal_CivJuvDep | AF1: Outputs_NoticesOfAppeal_CivTraf | AG1: Outputs_FinReceipts
A2: 2014-2015 | B2: Alachua | C2: 4600 | D2: 6200 | E2: 1400 | F2: 5400 | G2: 1950 | H2: 3900 | I2: 2100 | J2: 2650 | K2: 180 | L2: 61000 | M2: 2000 | N2: 750 | O2: 850 | P2: 1455 | Q2: 1500 | R2: 2800 | S2: 1600 | T2: 4700 | U2: 270 | V2: 0 | W2: 180 | X2: 12 | Y2: 5 | Z2: 7 | AA2: 80 | AB2: 3 | AC2: 3 | AD2: 4700 | AE2: 270 | AF2: 0 | AG2: 150000
A3: 2014-2015 | B3: Baker | C3: 530 | D3: 771 | E3: 89 | F3: 415 | G3: 256 | H3: 209 | I3: 192 | J3: 544 | K3: 108 | L3: 3631 | M3: 296 | N3: 467 | O3: 27 | P3: 125 | Q3: 23 | R3: 26 | S3: 74 | T3: 228 | U3: 7 | V3: 0 | W3: 10 | X3: 467 | Y3: 27 | Z3: 125 | AA3: 1 | AB3: 26 | AC3: 1 | AD3: 228 | AE3: 7 | AF3: 0 | AG3: 32467
A4: 2014-2015 | B4: Bay | C4: 4288 | D4: 8669 | E4: 1142 | F4: 4622 | G4: 1606 | H4: 2651 | I4: 1472 | J4: 2371 | K4: 314 | L4: 33259 | M4: 2260 | N4: 972 | O4: 559 | P4: 676 | Q4: 1182 | R4: 798 | S4: 45 | T4: 1973 | U4: 1102 | V4: 0 | W4: 210 | X4: 5 | Y4: 5 | Z4: 2 | AA4: 30 | AB4: 3 | AC4: 2 | AD4: 10 | AE4: 12 | AF4: 0 | AG4: 76286
A5: 2014-2015 | B5: Bradford | C5: 820 | D5: 600 | E5: 80 | F5: 375 | G5: 250 | H5: 300 | I5: 100 | J5: 350 | K5: 8 | L5: 7700 | M5: 250 | N5: 190 | O5: 30 | P5: 135 | Q5: 60 | R5: 45 | S5: 12 | T5: 235 | U5: 8 | V5: 0 | W5: 1 | X5: 190 | Y5: 30 | Z5: 135 | AA5: 10 | AB5: 45 | AC5: 12 | AD5: 235 | AE5: 8 | AF5: 0 | AG5: 12500
A6: 2014-2015 | B6: Brevard | C6: 9500 | D6: 10500 | E6: 1800 | F6: 9000 | G6: 6000 | H6: 7000 | I6: 4500 | J6: 7500 | K6: 300 | L6: 59000 | M6: 7600 | N6: 2000 | O6: 2000 | P6: 2100 | Q6: 5200 | R6: 3800 | S6: 1800 | T6: 7300 | U6: 450 | V6: 0 | W6: 600 | X6: 25 | Y6: 3 | Z6: 25 | AA6: 80 | AB6: 20 | AC6: 10 | AD6: 35 | AE6: 20 | AF6: 15 | AG6: 453519
A7: 2014-2015 | B7: Broward | C7: 17880 | D7: 26900 | E7: 5640 | F7: 32460 | G7: 26040 | H7: 62130 | I7: 10100 | J7: 24220 | K7: 900 | L7: 389160 | M7: 11640 | N7: 8000 | O7: 3700 | P7: 9360 | Q7: 46080 | R7: 31560 | S7: 430 | T7: 22180 | U7: 2520 | V7: 0 | W7: 840 | X7: 90 | Y7: 70 | Z7: 0 | AA7: 660 | AB7: 180 | AC7: 30 | AD7: 120 | AE7: 20 | AF7: 10 | AG7: 925000
A8: 2014-2015 | B8: Calhoun | C8: 210 | D8: 240 | E8: 30 | F8: 125 | G8: 75 | H8: 120 | I8: 55 | J8: 240 | K8: 10 | L8: 1600 | M8: 160 | N8: 45 | O8: 6 | P8: 40 | Q8: 7 | R8: 10 | S8: 1 | T8: 60 | U8: 10 | V8: 0 | W8: 19 | X8: 45 | Y8: 6 | Z8: 40 | AA8: 3 | AB8: 10 | AC8: 1 | AD8: 60 | AE8: 1 | AF8: 0 | AG8: 4900
A9: 2014-2015 | B9: Charlotte | C9: 2200 | D9: 2500 | E9: 650 | F9: 2500 | G9: 1500 | H9: 1950 | I9: 2300 | J9: 2000 | K9: 100 | L9: 16000 | M9: 1100 | N9: 450 | O9: 320 | P9: 525 | Q9: 1100 | R9: 450 | S9: 450 | T9: 650 | U9: 35 | V9: 0 | W9: 84 | X9: 7 | Y9: 3 | Z9: 3 | AA9: 35 | AB9: 4 | AC9: 2 | AD9: 1 | AE9: 4 | AF9: 1 | AG9: 52000
A10: 2014-2015 | B10: Citrus | C10: 1550 | D10: 2098 | E10: 300 | F10: 1100 | G10: 1650 | H10: 1700 | I10: 1450 | J10: 2000 | K10: 185 | L10: 9000 | M10: 2700 | N10: 1100 | O10: 180 | P10: 700 | Q10: 1028 | R10: 715 | S10: 800 | T10: 1460 | U10: 850 | V10: 0 | W10: 143 | X10: 2 | Y10: 2 | Z10: 1 | AA10: 24 | AB10: 4 | AC10: 3 | AD10: 4 | AE10: 12 | AF10: 2 | AG10: 130000
A11: 2014-2015 | B11: Clay | C11: 2200 | D11: 2450 | E11: 802 | F11: 2060 | G11: 1700 | H11: 2330 | I11: 891 | J11: 2300 | K11: 295 | L11: 21900 | M11: 1060 | N11: 435 | O11: 305 | P11: 586 | Q11: 930 | R11: 560 | S11: 36 | T11: 1770 | U11: 1641 | V11: 0 | W11: 10 | X11: 1 | Y11: 1 | Z11: 2 | AA11: 22 | AB11: 5 | AC11: 1 | AD11: 12 | AE11: 4 | AF11: 1 | AG11: 56567
A12: 2014-2015 | B12: Collier | C12: 2550 | D12: 4200 | E12: 850 | F12: 5100 | G12: 2900 | H12: 3800 | I12: 3400 | J12: 3000 | K12: 300 | L12: 41300 | M12: 1750 | N12: 1400 | O12: 240 | P12: 1200 | Q12: 3800 | R12: 1500 | S12: 1250 | T12: 2800 | U12: 400 | V12: 0 | W12: 120 | X12: 1 | Y12: 1 | Z12: 7 | AA12: 80 | AB12: 30 | AC12: 1 | AD12: 3 | AE12: 22 | AF12: 1 | AG12: 204000
A13: 2014-2015 | B13: Columbia | C13: 1000 | D13: 1400 | E13: 300 | F13: 1100 | G13: 550 | H13: 1110 | I13: 500 | J13: 1300 | K13: 140 | L13: 11000 | M13: 1200 | N13: 350 | O13: 160 | P13: 425 | Q13: 130 | R13: 150 | S13: 20 | T13: 1050 | U13: 90 | V13: 0 | W13: 60 | X13: 350 | Y13: 160 | Z13: 1 | AA13: 15 | AB13: 2 | AC13: 1 | AD13: 1 | AE13: 1 | AF13: 1 | AG13: 23000
A14: 2014-2015 | B14: Dade | C14: 33100 | D14: 54000 | E14: 5100 | F14: 76000 | G14: 40000 | H14: 82700 | I14: 12000 | J14: 31000 | K14: 4000 | L14: 822000 | M14: 28000 | N14: 15200 | O14: 5300 | P14: 50000 | Q14: 65000 | R14: 26000 | S14: 30000 | T14: 24400 | U14: 9550 | V14: 0 | W14: 1100 | X14: 40 | Y14: 100 | Z14: 30 | AA14: 960 | AB14: 330 | AC14: 33 | AD14: 115 | AE14: 80 | AF14: 0 | AG14: 2200000
A15: 2014-2015 | B15: Desoto | C15: 550 | D15: 730 | E15: 250 | F15: 435 | G15: 250 | H15: 312 | I15: 125 | J15: 450 | K15: 40 | L15: 5000 | M15: 200 | N15: 90 | O15: 20 | P15: 75 | Q15: 30 | R15: 5 | S15: 1 | T15: 5 | U15: 15 | V15: 0 | W15: 15 | X15: 5 | Y15: 2 | Z15: 1 | AA15: 15 | AB15: 1 | AC15: 1 | AD15: 1 | AE15: 5 | AF15: 1 | AG15: 9000
A16: 2014-2015 | B16: Dixie | C16: 240 | D16: 325 | E16: 42 | F16: 175 | G16: 120 | H16: 130 | I16: 80 | J16: 375 | K16: 22 | L16: 3500 | M16: 220 | N16: 22 | O16: 2 | P16: 25 | Q16: 22 | R16: 8 | S16: 5 | T16: 30 | U16: 1 | V16: 0 | W16: 2 | X16: 22 | Y16: 2 | Z16: 25 | AA16: 2 | AB16: 8 | AC16: 5 | AD16: 30 | AE16: 1 | AF16: 0 | AG16: 4870
A17: 2014-2015 | B17: Duval | C17: 12071 | D17: 22160 | E17: 3161 | F17: 18887 | G17: 9497 | H17: 21140 | I17: 6961 | J17: 14531 | K17: 1104 | L17: 128693 | M17: 8824 | N17: 2495 | O17: 1218 | P17: 2076 | Q17: 5139 | R17: 2161 | S17: 941 | T17: 6802 | U17: 587 | V17: 0 | W17: 684 | X17: 12 | Y17: 6 | Z17: 17 | AA17: 166 | AB17: 177 | AC17: 4 | AD17: 72 | AE17: 155 | AF17: 11 | AG17: 285815
A18: 2014-2015 | B18: Escambia | C18: 6600 | D18: 8300 | E18: 1700 | F18: 4200 | G18: 2400 | H18: 4100 | I18: 3300 | J18: 6100 | K18: 240 | L18: 29000 | M18: 6800 | N18: 3800 | O18: 5800 | P18: 400 | Q18: 1400 | R18: 1800 | S18: 2300 | T18: 6700 | U18: 4100 | V18: 0 | W18: 670 | X18: 30 | Y18: 4 | Z18: 4 | AA18: 50 | AB18: 15 | AC18: 3 | AD18: 15 | AE18: 15 | AF18: 5 | AG18: 128400
A19: 2014-2015 | B19: Flagler | C19: 1152 | D19: 1450 | E19: 348 | F19: 1046 | G19: 846 | H19: 1023 | I19: 712 | J19: 1237 | K19: 33 | L19: 9500 | M19: 461 | N19: 189 | O19: 161 | P19: 106 | Q19: 473 | R19: 244 | S19: 187 | T19: 600 | U19: 260 | V19: 0 | W19: 40 | X19: 189 | Y19: 161 | Z19: 1 | AA19: 20 | AB19: 244 | AC19: 187 | AD19: 1 | AE19: 1 | AF19: 0 | AG19: 24000
A20: 2014-2015 | B20: Franklin | C20: 282 | D20: 638 | E20: 44 | F20: 157 | G20: 135 | H20: 115 | I20: 64 | J20: 220 | K20: 6 | L20: 1100 | M20: 150 | N20: 173 | O20: 25 | P20: 77 | Q20: 100 | R20: 1 | S20: 1 | T20: 92 | U20: 1 | V20: 0 | W20: 2 | X20: 2 | Y20: 25 | Z20: 77 | AA20: 4 | AB20: 1 | AC20: 1 | AD20: 2 | AE20: 1 | AF20: 0 | AG20: 5346
A21: 2014-2015 | B21: Gadsden | C21: 551 | D21: 661 | E21: 126 | F21: 981 | G21: 428 | H21: 572 | I21: 425 | J21: 592 | K21: 12 | L21: 11937 | M21: 572 | N21: 476 | O21: 29 | P21: 981 | Q21: 135 | R21: 416 | S21: 28 | T21: 672 | U21: 12 | V21: 0 | W21: 110 | X21: 476 | Y21: 29 | Z21: 981 | AA21: 135 | AB21: 416 | AC21: 28 | AD21: 672 | AE21: 12 | AF21: 0 | AG21: 22241
A22: 2014-2015 | B22: Gilchrist | C22: 240 | D22: 300 | E22: 65 | F22: 165 | G22: 130 | H22: 130 | I22: 80 | J22: 280 | K22: 12 | L22: 1200 | M22: 85 | N22: 25 | O22: 20 | P22: 60 | Q22: 25 | R22: 5 | S22: 5 | T22: 180 | U22: 1 | V22: 0 | W22: 2 | X22: 25 | Y22: 20 | Z22: 60 | AA22: 1 | AB22: 5 | AC22: 1 | AD22: 2 | AE22: 1 | AF22: 0 | AG22: 3500
A23: 2014-2015 | B23: Glades | C23: 143 | D23: 280 | E23: 12 | F23: 203 | G23: 73 | H23: 92 | I23: 54 | J23: 116 | K23: 6 | L23: 4430 | M23: 31 | N23: 14 | O23: 12 | P23: 17 | Q23: 10 | R23: 2 | S23: 54 | T23: 50 | U23: 6 | V23: 0 | W23: 5 | X23: 14 | Y23: 12 | Z23: 17 | AA23: 1 | AB23: 2 | AC23: 54 | AD23: 50 | AE23: 6 | AF23: 0 | AG23: 5285
A24: 2014-2015 | B24: Gulf | C24: 296 | D24: 306 | E24: 38 | F24: 174 | G24: 167 | H24: 136 | I24: 99 | J24: 198 | K24: 6 | L24: 691 | M24: 139 | N24: 47 | O24: 7 | P24: 48 | Q24: 90 | R24: 7 | S24: 99 | T24: 135 | U24: 2 | V24: 0 | W24: 3 | X24: 47 | Y24: 7 | Z24: 48 | AA24: 6 | AB24: 7 | AC24: 99 | AD24: 3 | AE24: 2 | AF24: 0 | AG24: 3360
A25: 2014-2015 | B25: Hamilton | C25: 275 | D25: 291 | E25: 75 | F25: 379 | G25: 154 | H25: 123 | I25: 71 | J25: 285 | K25: 12 | L25: 4595 | M25: 219 | N25: 5 | O25: 5 | P25: 5 | Q25: 42 | R25: 5 | S25: 15 | T25: 151 | U25: 11 | V25: 0 | W25: 10 | X25: 1 | Y25: 1 | Z25: 1 | AA25: 10 | AB25: 2 | AC25: 2 | AD25: 2 | AE25: 1 | AF25: 1 | AG25: 7963
A26: 2014-2015 | B26: Hardee | C26: 397 | D26: 598 | E26: 141 | F26: 683 | G26: 173 | H26: 179 | I26: 98 | J26: 468 | K26: 25 | L26: 5472 | M26: 133 | N26: 42 | O26: 50 | P26: 20 | Q26: 79 | R26: 51 | S26: 70 | T26: 486 | U26: 89 | V26: 0 | W26: 133 | X26: 42 | Y26: 50 | Z26: 20 | AA26: 79 | AB26: 51 | AC26: 70 | AD26: 486 | AE26: 89 | AF26: 0 | AG26: 12500
A27: 2014-2015 | B27: Hendry | C27: 730 | D27: 1600 | E27: 240 | F27: 1050 | G27: 360 | H27: 370 | I27: 125 | J27: 690 | K27: 30 | L27: 6000 | M27: 30 | N27: 120 | O27: 30 | P27: 30 | Q27: 70 | R27: 15 | S27: 30 | T27: 190 | U27: 90 | V27: 0 | W27: 3 | X27: 1 | Y27: 1 | Z27: 1 | AA27: 3 | AB27: 1 | AC27: 30 | AD27: 190 | AE27: 90 | AF27: 0 | AG27: 15000
A28: 2014-2015 | B28: Hernando | C28: 2450 | D28: 2675 | E28: 575 | F28: 2000 | G28: 2500 | H28: 2400 | I28: 2500 | J28: 2500 | K28: 165 | L28: 28000 | M28: 3500 | N28: 425 | O28: 200 | P28: 250 | Q28: 1600 | R28: 800 | S28: 800 | T28: 1200 | U28: 500 | V28: 0 | W28: 100 | X28: 5 | Y28: 1 | Z28: 1 | AA28: 40 | AB28: 2 | AC28: 1 | AD28: 5 | AE28: 5 | AF28: 1 | AG28: 65820
A29: 2014-2015 | B29: Highlands | C29: 1178 | D29: 1278 | E29: 514 | F29: 922 | G29: 732 | H29: 936 | I29: 1234 | J29: 1172 | K29: 34 | L29: 8884 | M29: 1144 | N29: 1786 | O29: 1614 | P29: 1454 | Q29: 262 | R29: 212 | S29: 224 | T29: 1734 | U29: 290 | V29: 0 | W29: 74 | X29: 1786 | Y29: 2 | Z29: 4 | AA29: 10 | AB29: 212 | AC29: 224 | AD29: 6 | AE29: 2 | AF29: 0 | AG29: 27000
A30: 2014-2015 | B30: Hillsborough | C30: 19475 | D30: 27000 | E30: 5796 | F30: 35000 | G30: 16575 | H30: 35700 | I30: 9200 | J30: 20100 | K30: 688 | L30: 193500 | M30: 15000 | N30: 1850 | O30: 3330 | P30: 600 | Q30: 16200 | R30: 13700 | S30: 5200 | T30: 15680 | U30: 540 | V30: 0 | W30: 1318 | X30: 18 | Y30: 65 | Z30: 18 | AA30: 246 | AB30: 23 | AC30: 6 | AD30: 94 | AE30: 79 | AF30: 14 | AG30: 525200
A31: 2014-2015 | B31: Holmes | C31: 350 | D31: 530 | E31: 70 | F31: 300 | G31: 130 | H31: 200 | I31: 105 | J31: 328 | K31: 17 | L31: 3600 | M31: 320 | N31: 120 | O31: 12 | P31: 43 | Q31: 14 | R31: 11 | S31: 5 | T31: 35 | U31: 25 | V31: 0 | W31: 11 | X31: 120 | Y31: 12 | Z31: 43 | AA31: 4 | AB31: 11 | AC31: 5 | AD31: 35 | AE31: 25 | AF31: 0 | AG31: 7500
A32: 2014-2015 | B32: Indian River | C32: 1600 | D32: 3300 | E32: 600 | F32: 1500 | G32: 1500 | H32: 1800 | I32: 1200 | J32: 1800 | K32: 100 | L32: 15000 | M32: 1500 | N32: 300 | O32: 1500 | P32: 1400 | Q32: 1100 | R32: 600 | S32: 500 | T32: 1900 | U32: 1600 | V32: 0 | W32: 50 | X32: 3 | Y32: 10 | Z32: 1 | AA32: 50 | AB32: 4 | AC32: 1 | AD32: 12 | AE32: 4 | AF32: 1 | AG32: 46000
A33: 2014-2015 | B33: Jackson | C33: 650 | D33: 1060 | E33: 100 | F33: 554 | G33: 805 | H33: 615 | I33: 305 | J33: 240 | K33: 58 | L33: 9930 | M33: 350 | N33: 61 | O33: 10 | P33: 36 | Q33: 81 | R33: 18 | S33: 267 | T33: 418 | U33: 10 | V33: 0 | W33: 34 | X33: 61 | Y33: 10 | Z33: 36 | AA33: 16 | AB33: 18 | AC33: 1 | AD33: 418 | AE33: 6 | AF33: 1 | AG33: 16500
A34: 2014-2015 | B34: Jefferson | C34: 164 | D34: 197 | E34: 28 | F34: 211 | G34: 128 | H34: 90 | I34: 76 | J34: 154 | K34: 7 | L34: 5707 | M34: 104 | N34: 7 | O34: 12 | P34: 5 | Q34: 14 | R34: 95 | S34: 2 | T34: 211 | U34: 12 | V34: 0 | W34: 2 | X34: 2 | Y34: 12 | Z34: 2 | AA34: 3 | AB34: 2 | AC34: 1 | AD34: 1 | AE34: 12 | AF34: 0 | AG34: 7333
A35: 2014-2015 | B35: Lafayette | C35: 59 | D35: 96 | E35: 11 | F35: 65 | G35: 57 | H35: 72 | I35: 41 | J35: 151 | K35: 3 | L35: 575 | M35: 54 | N35: 10 | O35: 4 | P35: 10 | Q35: 5 | R35: 8 | S35: 1 | T35: 20 | U35: 1 | V35: 0 | W35: 4 | X35: 1 | Y35: 1 | Z35: 1 | AA35: 4 | AB35: 1 | AC35: 1 | AD35: 1 | AE35: 1 | AF35: 1 | AG35: 1385
A36: 2014-2015 | B36: Lake | C36: 3550 | D36: 3800 | E36: 1175 | F36: 4250 | G36: 2750 | H36: 4000 | I36: 2400 | J36: 3400 | K36: 200 | L36: 35000 | M36: 1300 | N36: 700 | O36: 300 | P36: 550 | Q36: 2600 | R36: 1950 | S36: 600 | T36: 4300 | U36: 1350 | V36: 0 | W36: 140 | X36: 4 | Y36: 1 | Z36: 4 | AA36: 50 | AB36: 2 | AC36: 3 | AD36: 8 | AE36: 8 | AF36: 5 | AG36: 337850
A37: 2014-2015 | B37: Lee | C37: 6000 | D37: 18400 | E37: 2500 | F37: 10700 | G37: 6000 | H37: 9000 | I37: 5500 | J37: 8600 | K37: 450 | L37: 94000 | M37: 17000 | N37: 4500 | O37: 675 | P37: 4200 | Q37: 5000 | R37: 3000 | S37: 2800 | T37: 6800 | U37: 1000 | V37: 0 | W37: 250 | X37: 15 | Y37: 5 | Z37: 10 | AA37: 180 | AB37: 20 | AC37: 4 | AD37: 40 | AE37: 8 | AF37: 2 | AG37: 220000
A38: 2014-2015 | B38: Leon | C38: 3881 | D38: 4163 | E38: 986 | F38: 3343 | G38: 3530 | H38: 5951 | I38: 2571 | J38: 3726 | K38: 114 | L38: 41524 | M38: 804 | N38: 414 | O38: 4215 | P38: 573 | Q38: 1760 | R38: 2067 | S38: 1391 | T38: 5912 | U38: 2024 | V38: 0 | W38: 447 | X38: 11 | Y38: 5 | Z38: 11 | AA38: 249 | AB38: 26 | AC38: 1 | AD38: 21 | AE38: 17 | AF38: 3 | AG38: 154000
A39: 2014-2015 | B39: Levy | C39: 895 | D39: 900 | E39: 155 | F39: 715 | G39: 425 | H39: 300 | I39: 200 | J39: 700 | K39: 25 | L39: 3500 | M39: 275 | N39: 226 | O39: 225 | P39: 75 | Q39: 150 | R39: 100 | S39: 25 | T39: 450 | U39: 125 | V39: 0 | W39: 25 | X39: 3 | Y39: 1 | Z39: 3 | AA39: 10 | AB39: 3 | AC39: 1 | AD39: 4 | AE39: 3 | AF39: 2 | AG39: 9822
A40: 2014-2015 | B40: Liberty | C40: 93 | D40: 137 | E40: 9 | F40: 93 | G40: 65 | H40: 31 | I40: 26 | J40: 115 | K40: 5 | L40: 703 | M40: 74 | N40: 24 | O40: 1 | P40: 33 | Q40: 10 | R40: 1 | S40: 1 | T40: 51 | U40: 1 | V40: 0 | W40: 3 | X40: 24 | Y40: 1 | Z40: 33 | AA40: 4 | AB40: 1 | AC40: 1 | AD40: 51 | AE40: 1 | AF40: 0 | AG40: 6250
A41: 2014-2015 | B41: Madison | C41: 355 | D41: 453 | E41: 120 | F41: 475 | G41: 170 | H41: 210 | I41: 125 | J41: 330 | K41: 7 | L41: 12300 | M41: 300 | N41: 30 | O41: 26 | P41: 28 | Q41: 13 | R41: 14 | S41: 2 | T41: 240 | U41: 3 | V41: 0 | W41: 10 | X41: 1 | Y41: 1 | Z41: 28 | AA41: 3 | AB41: 14 | AC41: 2 | AD41: 240 | AE41: 3 | AF41: 0 | AG41: 19000
A42: 2014-2015 | B42: Manatee | C42: 4700 | D42: 6000 | E42: 1000 | F42: 5000 | G42: 2500 | H42: 5000 | I42: 3000 | J42: 4000 | K42: 700 | L42: 40000 | M42: 3500 | N42: 750 | O42: 1200 | P42: 1000 | Q42: 3000 | R42: 2000 | S42: 1200 | T42: 5000 | U42: 1100 | V42: 0 | W42: 150 | X42: 10 | Y42: 15 | Z42: 4 | AA42: 50 | AB42: 5 | AC42: 1200 | AD42: 15 | AE42: 5 | AF42: 0 | AG42: 120000
A43: 2014-2015 | B43: Marion | C43: 4634 | D43: 5252 | E43: 1146 | F43: 4560 | G43: 4380 | H43: 4087 | I43: 4757 | J43: 5717 | K43: 285 | L43: 27967 | M43: 5797 | N43: 1580 | O43: 818 | P43: 3092 | Q43: 2897 | R43: 1905 | S43: 606 | T43: 6652 | U43: 1558 | V43: 0 | W43: 356 | X43: 13 | Y43: 1 | Z43: 11 | AA43: 75 | AB43: 12 | AC43: 6 | AD43: 18 | AE43: 15 | AF43: 3 | AG43: 394400
A44: 2014-2015 | B44: Martin | C44: 1781 | D44: 2750 | E44: 387 | F44: 3425 | G44: 1515 | H44: 1691 | I44: 1355 | J44: 1488 | K44: 102 | L44: 21392 | M44: 2025 | N44: 408 | O44: 885 | P44: 234 | Q44: 688 | R44: 461 | S44: 405 | T44: 882 | U44: 42 | V44: 0 | W44: 80 | X44: 3 | Y44: 3 | Z44: 14 | AA44: 48 | AB44: 6 | AC44: 405 | AD44: 9 | AE44: 6 | AF44: 0 | AG44: 54100
A45: 2014-2015 | B45: Monroe | C45: 1589 | D45: 3643 | E45: 225 | F45: 943 | G45: 1314 | H45: 1304 | I45: 483 | J45: 1565 | K45: 63 | L45: 29297 | M45: 651 | N45: 249 | O45: 130 | P45: 112 | Q45: 578 | R45: 147 | S45: 53 | T45: 322 | U45: 258 | V45: 0 | W45: 65 | X45: 7 | Y45: 4 | Z45: 3 | AA45: 30 | AB45: 3 | AC45: 2 | AD45: 8 | AE45: 2 | AF45: 2 | AG45: 45000
A46: 2014-2015 | B46: Nassau | C46: 1000 | D46: 1600 | E46: 200 | F46: 1650 | G46: 725 | H46: 700 | I46: 350 | J46: 1250 | K46: 35 | L46: 8000 | M46: 350 | N46: 1000 | O46: 60 | P46: 1200 | Q46: 450 | R46: 300 | S46: 80 | T46: 800 | U46: 230 | V46: 0 | W46: 60 | X46: 3 | Y46: 1 | Z46: 1 | AA46: 10 | AB46: 2 | AC46: 1 | AD46: 1 | AE46: 230 | AF46: 0 | AG46: 21050
A47: 2014-2015 | B47: Okaloosa | C47: 3000 | D47: 5100 | E47: 950 | F47: 3500 | G47: 1800 | H47: 2700 | I47: 1400 | J47: 3400 | K47: 400 | L47: 23000 | M47: 3703 | N47: 1939 | O47: 540 | P47: 672 | Q47: 1644 | R47: 1125 | S47: 331 | T47: 2611 | U47: 259 | V47: 0 | W47: 100 | X47: 1 | Y47: 540 | Z47: 672 | AA47: 40 | AB47: 2 | AC47: 1 | AD47: 15 | AE47: 2 | AF47: 0 | AG47: 75000
A48: 2014-2015 | B48: Okeechobee | C48: 828 | D48: 708 | E48: 144 | F48: 624 | G48: 360 | H48: 360 | I48: 228 | J48: 492 | K48: 96 | L48: 4008 | M48: 324 | N48: 120 | O48: 48 | P48: 36 | Q48: 348 | R48: 216 | S48: 36 | T48: 372 | U48: 432 | V48: 0 | W48: 60 | X48: 120 | Y48: 48 | Z48: 36 | AA48: 6 | AB48: 216 | AC48: 1 | AD48: 1 | AE48: 432 | AF48: 0 | AG48: 15443
A49: 2014-2015 | B49: Orange | C49: 18100 | D49: 21100 | E49: 5400 | F49: 17550 | G49: 12740 | H49: 28770 | I49: 5980 | J49: 17800 | K49: 590 | L49: 260000 | M49: 9600 | N49: 3000 | O49: 6600 | P49: 2200 | Q49: 24000 | R49: 11500 | S49: 4300 | T49: 16800 | U49: 1800 | V49: 0 | W49: 640 | X49: 40 | Y49: 60 | Z49: 20 | AA49: 380 | AB49: 60 | AC49: 15 | AD49: 80 | AE49: 10 | AF49: 5 | AG49: 872000
A50: 2014-2015 | B50: Osceola | C50: 4799 | D50: 5379 | E50: 1430 | F50: 5500 | G50: 4202 | H50: 4721 | I50: 1280 | J50: 4952 | K50: 109 | L50: 76050 | M50: 8062 | N50: 6238 | O50: 1420 | P50: 3036 | Q50: 2300 | R50: 650 | S50: 320 | T50: 2950 | U50: 1819 | V50: 0 | W50: 114 | X50: 10 | Y50: 4 | Z50: 4 | AA50: 62 | AB50: 9 | AC50: 6 | AD50: 10 | AE50: 10 | AF50: 1 | AG50: 191070
A51: 2014-2015 | B51: Palm Beach | C51: 14325 | D51: 34460 | E51: 3999 | F51: 31146 | G51: 19491 | H51: 30629 | I51: 10705 | J51: 14326 | K51: 872 | L51: 278156 | M51: 6774 | N51: 1916 | O51: 1510 | P51: 2904 | Q51: 14829 | R51: 3398 | S51: 5708 | T51: 14331 | U51: 519 | V51: 0 | W51: 651 | X51: 37 | Y51: 30 | Z51: 44 | AA51: 501 | AB51: 80 | AC51: 37 | AD51: 127 | AE51: 20 | AF51: 35 | AG51: 565000
A52: 2014-2015 | B52: Pasco | C52: 9115 | D52: 14750 | E52: 2350 | F52: 6750 | G52: 5075 | H52: 7275 | I52: 2750 | J52: 6175 | K52: 325 | L52: 47000 | M52: 17500 | N52: 3839 | O52: 2000 | P52: 2350 | Q52: 4025 | R52: 2075 | S52: 1600 | T52: 2975 | U52: 6750 | V52: 0 | W52: 180 | X52: 15 | Y52: 5 | Z52: 10 | AA52: 125 | AB52: 15 | AC52: 15 | AD52: 25 | AE52: 40 | AF52: 3 | AG52: 63581
A53: 2014-2015 | B53: Pinellas | C53: 24500 | D53: 34500 | E53: 6200 | F53: 21380 | G53: 11000 | H53: 20500 | I53: 10400 | J53: 14100 | K53: 1100 | L53: 107450 | M53: 8280 | N53: 1500 | O53: 3180 | P53: 4870 | Q53: 2190 | R53: 3480 | S53: 4060 | T53: 7090 | U53: 2000 | V53: 0 | W53: 260 | X53: 30 | Y53: 20 | Z53: 44 | AA53: 120 | AB53: 50 | AC53: 15 | AD53: 50 | AE53: 15 | AF53: 15 | AG53: 418402
A54: 2014-2015 | B54: Polk | C54: 9384 | D54: 16500 | E54: 4000 | F54: 9350 | G54: 5400 | H54: 10500 | I54: 5200 | J54: 10100 | K54: 700 | L54: 76720 | M54: 10215 | N54: 2851 | O54: 2300 | P54: 1650 | Q54: 6700 | R54: 4100 | S54: 1800 | T54: 7800 | U54: 1700 | V54: 0 | W54: 561 | X54: 48 | Y54: 16 | Z54: 14 | AA54: 81 | AB54: 7 | AC54: 10 | AD54: 26 | AE54: 10 | AF54: 9 | AG54: 228000
A55: 2014-2015 | B55: Putnam | C55: 2200 | D55: 2000 | E55: 600 | F55: 1800 | G55: 600 | H55: 1080 | I55: 425 | J55: 1600 | K55: 40 | L55: 8500 | M55: 1800 | N55: 350 | O55: 150 | P55: 300 | Q55: 180 | R55: 200 | S55: 35 | T55: 1600 | U55: 200 | V55: 0 | W55: 80 | X55: 2 | Y55: 2 | Z55: 1 | AA55: 6 | AB55: 2 | AC55: 2 | AD55: 3 | AE55: 1 | AF55: 1 | AG55: 23000
A56: 2014-2015 | B56: Santa Rosa | C56: 1677 | D56: 2350 | E56: 492 | F56: 1909 | G56: 1397 | H56: 1199 | I56: 674 | J56: 2527 | K56: 113 | L56: 18679 | M56: 1338 | N56: 738 | O56: 225 | P56: 372 | Q56: 602 | R56: 620 | S56: 473 | T56: 1071 | U56: 95 | V56: 0 | W56: 104 | X56: 8 | Y56: 4 | Z56: 2 | AA56: 45 | AB56: 2 | AC56: 2 | AD56: 20 | AE56: 9 | AF56: 2 | AG56: 53663
A57: 2014-2015 | B57: Sarasota | C57: 4798 | D57: 8835 | E57: 695 | F57: 6584 | G57: 3966 | H57: 7081 | I57: 6894 | J57: 4244 | K57: 213 | L57: 68979 | M57: 4661 | N57: 1395 | O57: 418 | P57: 1237 | Q57: 5505 | R57: 2253 | S57: 2735 | T57: 2803 | U57: 23 | V57: 0 | W57: 234 | X57: 6 | Y57: 2 | Z57: 14 | AA57: 106 | AB57: 1 | AC57: 11 | AD57: 36 | AE57: 3 | AF57: 1 | AG57: 165761
A58: 2014-2015 | B58: Seminole | C58: 5000 | D58: 7000 | E58: 1900 | F58: 6200 | G58: 4400 | H58: 8300 | I58: 3000 | J58: 5100 | K58: 164 | L58: 75000 | M58: 3300 | N58: 2200 | O58: 1200 | P58: 1620 | Q58: 4580 | R58: 2550 | S58: 1480 | T58: 4440 | U58: 3048 | V58: 0 | W58: 250 | X58: 25 | Y58: 4 | Z58: 12 | AA58: 75 | AB58: 48 | AC58: 5 | AD58: 34 | AE58: 1 | AF58: 1 | AG58: 465500
A59: 2014-2015 | B59: St. Johns | C59: 2200 | D59: 5250 | E59: 650 | F59: 1900 | G59: 2100 | H59: 2200 | I59: 1350 | J59: 2900 | K59: 85 | L59: 21000 | M59: 2500 | N59: 650 | O59: 750 | P59: 220 | Q59: 1000 | R59: 35 | S59: 40 | T59: 800 | U59: 50 | V59: 0 | W59: 90 | X59: 3 | Y59: 2 | Z59: 1 | AA59: 40 | AB59: 5 | AC59: 2 | AD59: 28 | AE59: 3 | AF59: 0 | AG59: 47700
A60: 2014-2015 | B60: St. Lucie | C60: 4200 | D60: 5600 | E60: 1500 | F60: 3600 | G60: 3200 | H60: 5000 | I60: 2600 | J60: 3100 | K60: 425 | L60: 47500 | M60: 1600 | N60: 2200 | O60: 1100 | P60: 1500 | Q60: 2400 | R60: 1700 | S60: 1200 | T60: 2400 | U60: 250 | V60: 0 | W60: 245 | X60: 6 | Y60: 6 | Z60: 2 | AA60: 60 | AB60: 12 | AC60: 2 | AD60: 8 | AE60: 8 | AF60: 2 | AG60: 127000
A61: 2014-2015 | B61: Sumter | C61: 960 | D61: 690 | E61: 140 | F61: 950 | G61: 2000 | H61: 470 | I61: 800 | J61: 860 | K61: 40 | L61: 13000 | M61: 375 | N61: 80 | O61: 20 | P61: 100 | Q61: 400 | R61: 260 | S61: 225 | T61: 675 | U61: 30 | V61: 0 | W61: 50 | X61: 1 | Y61: 1 | Z61: 1 | AA61: 15 | AB61: 2 | AC61: 1 | AD61: 1 | AE61: 1 | AF61: 1 | AG61: 60000
A62: 2014-2015 | B62: Suwannee | C62: 640 | D62: 590 | E62: 185 | F62: 600 | G62: 340 | H62: 480 | I62: 250 | J62: 960 | K62: 15 | L62: 4015 | M62: 880 | N62: 100 | O62: 85 | P62: 80 | Q62: 45 | R62: 100 | S62: 10 | T62: 455 | U62: 2 | V62: 0 | W62: 10 | X62: 10 | Y62: 1 | Z62: 1 | AA62: 11 | AB62: 1 | AC62: 1 | AD62: 1 | AE62: 1 | AF62: 1 | AG62: 14384
A63: 2014-2015 | B63: Taylor | C63: 474 | D63: 680 | E63: 60 | F63: 350 | G63: 175 | H63: 160 | I63: 125 | J63: 600 | K63: 13 | L63: 2500 | M63: 465 | N63: 205 | O63: 3 | P63: 350 | Q63: 60 | R63: 50 | S63: 3 | T63: 135 | U63: 1 | V63: 0 | W63: 12 | X63: 1 | Y63: 3 | Z63: 350 | AA63: 18 | AB63: 1 | AC63: 3 | AD63: 135 | AE63: 1 | AF63: 0 | AG63: 7500
A64: 2014-2015 | B64: Union | C64: 225 | D64: 265 | E64: 50 | F64: 120 | G64: 110 | H64: 140 | I64: 130 | J64: 240 | K64: 3 | L64: 800 | M64: 65 | N64: 115 | O64: 16 | P64: 65 | Q64: 50 | R64: 15 | S64: 8 | T64: 200 | U64: 8 | V64: 0 | W64: 10 | X64: 1 | Y64: 16 | Z64: 65 | AA64: 10 | AB64: 15 | AC64: 8 | AD64: 200 | AE64: 8 | AF64: 0 | AG64: 3000
A65: 2014-2015 | B65: Volusia | C65: 9792 | D65: 17414 | E65: 2630 | F65: 13076 | G65: 4974 | H65: 8060 | I65: 5016 | J65: 7350 | K65: 360 | L65: 78046 | M65: 3558 | N65: 1734 | O65: 3094 | P65: 376 | Q65: 4352 | R65: 3066 | S65: 1618 | T65: 8516 | U65: 1598 | V65: 0 | W65: 376 | X65: 8 | Y65: 2 | Z65: 2 | AA65: 102 | AB65: 34 | AC65: 8 | AD65: 22 | AE65: 18 | AF65: 2 | AG65: 200000
A66: 2014-2015 | B66: Wakulla | C66: 345 | D66: 375 | E66: 70 | F66: 450 | G66: 475 | H66: 275 | I66: 165 | J66: 500 | K66: 20 | L66: 3500 | M66: 295 | N66: 85 | O66: 20 | P66: 130 | Q66: 240 | R66: 80 | S66: 5 | T66: 230 | U66: 5 | V66: 0 | W66: 15 | X66: 85 | Y66: 20 | Z66: 130 | AA66: 15 | AB66: 80 | AC66: 5 | AD66: 230 | AE66: 5 | AF66: 0 | AG66: 10650
A67: 2014-2015 | B67: Walton | C67: 750 | D67: 2477 | E67: 363 | F67: 2235 | G67: 1274 | H67: 884 | I67: 322 | J67: 927 | K67: 129 | L67: 8319 | M67: 631 | N67: 566 | O67: 87 | P67: 233 | Q67: 508 | R67: 159 | S67: 17 | T67: 324 | U67: 29 | V67: 0 | W67: 50 | X67: 5 | Y67: 87 | Z67: 1 | AA67: 28 | AB67: 3 | AC67: 17 | AD67: 2 | AE67: 1 | AF67: 0 | AG67: 29540
A68: 2014-2015 | B68: Washington | C68: 400 | D68: 650 | E68: 95 | F68: 305 | G68: 260 | H68: 255 | I68: 115 | J68: 400 | K68: 20 | L68: 4000 | M68: 220 | N68: 75 | O68: 5 | P68: 85 | Q68: 25 | R68: 2 | S68: 5 | T68: 200 | U68: 2 | V68: 0 | W68: 25 | X68: 75 | Y68: 5 | Z68: 85 | AA68: 10 | AB68: 2 | AC68: 5 | AD68: 200 | AE68: 2 | AF68: 0 | AG68: 26000

Sheet Timeliness Quarterly
B2: County Fiscal Year 2014 - 2015
B3: Timeliness Quarterly Report Form for CCOC
C5: Report Month of (Quarter Ending): | D5: ='Outputs Monthly'!D6:E6 -> Jun | F5: Contact: | G5: Michelle Levar
C6: Version #: | D6: ='Outputs Monthly'!D7:E7 -> 1 | F6: Telephone: | G6: 321-633-7782
C7: County: | D7: ='Outputs Monthly'!D8:E8 -> Brevard | F7: E-mail: | G7: michelle.levar@brevardclerk.us
A9: Timeliness Measures #1: Annual Projected % of new cases OPENED within X business days after initial documents are clocked in.
D10: Performance Measure Standard | E10: # of business days | F10: 10/1/14 - 12/31/14 | G10: 1/1/15 - 3/31/15 | H10: 4/1/15 - 6/30/15 | I10: 7/1/15 - 9/30/15 | K10: =F10 -> 10/1/14 - 12/31/14 | M10: =G10 -> 1/1/15 - 3/31/15 | O10: =H10 -> 4/1/15 - 6/30/15 | Q10: =I10 -> 7/1/15 - 9/30/15
A11: A | B11: Criminal | F11: 1st Quarter | G11: 2nd Quarter | H11: 3rd Quarter | I11: 4th Quarter | J11: Year-to-Date | K11: Reason Code | L11: Actions to Improve | M11: Reason Code | N11: Actions to Improve | O11: Reason Code | P11: Actions to Improve | Q11: Reason Code | R11: Actions to Improve | T11: 1
A12: Circuit (defendants) | C12: Total # of defendants | D12: 0.8 | E12: 2 | F12: ='Outputs Monthly'!D18+'Outputs Monthly'!D22+'Outputs Monthly'!D26 -> 1775 | G12: ='Outputs Monthly'!D30+'Outputs Monthly'!D34+'Outputs Monthly'!D38 -> 1916 | H12: ='Outputs Monthly'!D42+'Outputs Monthly'!D46+'Outputs Monthly'!D50 -> 1986 | I12: ='Outputs Monthly'!D54+'Outputs Monthly'!D58+'Outputs Monthly'!D62 -> 662 | J12: =SUM(F12:I12) -> 6339
C13: # within 2 business days | F13: 1759 | G13: 1883 | H13: 1928 | I13: 657 | J13: =SUM(F13:I13) -> 6227 | T13: E-Filing
C14: % mtg level | F14: =F13/F12 -> 0.9909859155 | G14: =G13/G12 -> 0.982776618 | H14: =H13/H12 -> 0.970795569 | I14: =I13/I12 -> 0.9924471299 | J14: =J13/J12 -> 0.982331598 | T14: Procedural
A15: County (defendants) | C15: Total # of defendants | D15: 0.8 | E15: 3 | F15: ='Outputs Monthly'!E18+'Outputs Monthly'!E22+'Outputs Monthly'!E26 -> 2334 | G15: ='Outputs Monthly'!E30+'Outputs Monthly'!E34+'Outputs Monthly'!E38 -> 2357 | H15: ='Outputs Monthly'!E42+'Outputs Monthly'!E46+'Outputs Monthly'!E50 -> 2577 | I15: ='Outputs Monthly'!E54+'Outputs Monthly'!E58+'Outputs Monthly'!E62 -> 878 | J15: 8146 | T15: Staffing - Insufficient Personnel
C16: # within 3 business days | F16: 2265 | G16: 2279 | H16: 2473 | I16: 876 | J16: 7893 | T16: Staffing - Training Required
C17: % mtg level | F17: =F16/F15 -> 0.970437018 | G17: =G16/G15 -> 0.9669070853 | H17: =H16/H15 -> 0.9596429957 | I17: =I16/I15 -> 0.9977220957 | J17: =J16/J15 -> 0.9689418119 | T17: Systems
A18: Juvenile Delinquency (juveniles) | C18: Total # of juveniles | D18: 0.8 | E18: 2 | F18: ='Outputs Monthly'!F18+'Outputs Monthly'!F22+'Outputs Monthly'!F26 -> 501 | G18: ='Outputs Monthly'!F30+'Outputs Monthly'!F34+'Outputs Monthly'!F38 -> 438 | H18: ='Outputs Monthly'!F42+'Outputs Monthly'!F46+'Outputs Monthly'!F50 -> 473 | I18: ='Outputs Monthly'!F54+'Outputs Monthly'!F58+'Outputs Monthly'!F62 -> 167 | J18: 1579 | T18: Other
C19: # within 2 business days | F19: 491 | G19: 430 | H19: 466 | I19: 166 | J19: 1553
C20: % mtg level | F20: =F19/F18 -> 0.9800399202 | G20: =G19/G18 -> 0.9817351598 | H20: =H19/H18 -> 0.9852008457 | I20: =I19/I18 -> 0.994011976 | J20: =J19/J18 -> 0.9835338822 | ZZ20: PABS4.0
A21: Traffic (UTC) | C21: Total # UTC | D21: 0.8 | E21: 3 | F21: ='Outputs Monthly'!G18+'Outputs Monthly'!G22+'Outputs Monthly'!G26 -> 1562 | G21: ='Outputs Monthly'!G30+'Outputs Monthly'!G34+'Outputs Monthly'!G38 -> 1629 | H21: ='Outputs Monthly'!G42+'Outputs Monthly'!G46+'Outputs Monthly'!G50 -> 1433 | I21: ='Outputs Monthly'!G54+'Outputs Monthly'!G58+'Outputs Monthly'!G62 -> 606 | J21: 5230
C22: # within 3 business days | F22: 1510 | G22: 1512 | H22: 1377 | I22: 598 | J22: 4997
C23: % mtg level | F23: =F22/F21 -> 0.966709347 | G23: =G22/G21 -> 0.9281767956 | H23: =H22/H21 -> 0.9609211445 | I23: =I22/I21 -> 0.9867986799 | J23: =J22/J21 -> 0.9554493308
A24: B | B24: Civil
A25: Circuit (cases) | C25: Total # of cases | D25: 0.8 | E25: 2 | F25: ='Outputs Monthly'!J18+'Outputs Monthly'!J22+'Outputs Monthly'!J26 -> 1048 | G25: ='Outputs Monthly'!J30+'Outputs Monthly'!J34+'Outputs Monthly'!J38 -> 1117 | H25: ='Outputs Monthly'!J42+'Outputs Monthly'!J46+'Outputs Monthly'!J50 -> 1063 | I25: ='Outputs Monthly'!J54+'Outputs Monthly'!J58+'Outputs Monthly'!J62 -> 409 | J25: 3637
C26: # within 2 business days | F26: 978 | G26: 1023 | H26: 993 | I26: 386 | J26: 3380
C27: % mtg level | F27: =F26/F25 -> 0.9332061069 | G27: =G26/G25 -> 0.9158460161 | H27: =H26/H25 -> 0.9341486359 | I27: =I26/I25 -> 0.9437652812 | J27: =J26/J25 -> 0.929337366
A28: County (cases) | C28: Total # of cases | D28: 0.8 | E28: 2 | F28: ='Outputs Monthly'!K18+'Outputs Monthly'!K22+'Outputs Monthly'!K26 -> 1827 | G28: ='Outputs Monthly'!K30+'Outputs Monthly'!K34+'Outputs Monthly'!K38 -> 2282 | H28: ='Outputs Monthly'!K42+'Outputs Monthly'!K46+'Outputs Monthly'!K50 -> 2226 | I28: ='Outputs Monthly'!K54+'Outputs Monthly'!K58+'Outputs Monthly'!K62 -> 690 | J28: 7025
C29: # within 2 business days | F29: 1812 | G29: 2248 | H29: 2213 | I29: 679 | J29: 6952
C30: % mtg level | F30: =F29/F28 -> 0.9917898194 | G30: =G29/G28 -> 0.9851007888 | H30: =H29/H28 -> 0.9941599281 | I30: =I29/I28 -> 0.984057971 | J30: =J29/J28 -> 0.9896085409
A31: Traffic (UTC) | C31: Total # UTC | D31: 0.8 | E31: 4 | F31: ='Outputs Monthly'!L18+'Outputs Monthly'!L22+'Outputs Monthly'!L26 -> 11680 | G31: ='Outputs Monthly'!L30+'Outputs Monthly'!L34+'Outputs Monthly'!L38 -> 11216 | H31: ='Outputs Monthly'!L42+'Outputs Monthly'!L46+'Outputs Monthly'!L50 -> 10805 | I31: ='Outputs Monthly'!L54+'Outputs Monthly'!L58+'Outputs Monthly'!L62 -> 3563 | J31: 37264
C32: # within 4 business days | F32: 11621 | G32: 10961 | H32: 10756 | I32: 3540 | J32: 36878
C33: % mtg level | F33: =F32/F31 -> 0.9949486301 | G33: =G32/G31 -> 0.977264622 | H33: =H32/H31 -> 0.9954650625 | I33: =I32/I31 -> 0.9935447656 | J33: =J32/J31 -> 0.989641477
A34: Circuit Probate (cases) | C34: Total # of cases | D34: 0.8 | E34: 2 | F34: ='Outputs Monthly'!M18+'Outputs Monthly'!M22+'Outputs Monthly'!M26 -> 1022 | G34: ='Outputs Monthly'!M30+'Outputs Monthly'!M34+'Outputs Monthly'!M38 -> 1268 | H34: ='Outputs Monthly'!M42+'Outputs Monthly'!M46+'Outputs Monthly'!M50 -> 1263 | I34: ='Outputs Monthly'!M54+'Outputs Monthly'!M58+'Outputs Monthly'!M62 -> 416 | J34: 3969
C35: # within 2 business days | F35: 1011 | G35: 1241 | H35: 1242 | I35: 412 | J35: 3906
C36: % mtg level | F36: =F35/F34 -> 0.9892367906 | G36: =G35/G34 -> 0.9787066246 | H36: =H35/H34 -> 0.9833729216 | I36: =I35/I34 -> 0.9903846154 | J36: =J35/J34 -> 0.9841269841
A37: Family (cases) | C37: Total # of cases | D37: 0.8 | E37: 3 | F37: ='Outputs Monthly'!N18+'Outputs Monthly'!N22+'Outputs Monthly'!N26 -> 1594 | G37: ='Outputs Monthly'!N30+'Outputs Monthly'!N34+'Outputs Monthly'!N38 -> 1701 | H37: ='Outputs Monthly'!N42+'Outputs Monthly'!N46+'Outputs Monthly'!N50 -> 1877 | I37: ='Outputs Monthly'!N54+'Outputs Monthly'!N58+'Outputs Monthly'!N62 -> 582 | J37: 5754
C38: # within 3 business days | F38: 1550 | G38: 1646 | H38: 1864 | I38: 581 | J38: 5641
C39: % mtg level | F39: =F38/F37 -> 0.9723964868 | G39: =G38/G37 -> 0.9676660788 | H39: =H38/H37 -> 0.9930740543 | I39: =I38/I37 -> 0.9982817869 | J39: =J38/J37 -> 0.9803614877
A40: Juvenile Dependency (cases) | C40: Total # of cases | D40: 0.8 | E40: 2 | F40: ='Outputs Monthly'!O18+'Outputs Monthly'!O22+'Outputs Monthly'!O26 -> 103 | G40: ='Outputs Monthly'!O30+'Outputs Monthly'!O34+'Outputs Monthly'!O38 -> 145 | H40: ='Outputs Monthly'!O42+'Outputs Monthly'!O46+'Outputs Monthly'!O50 -> 101 | I40: ='Outputs Monthly'!O54+'Outputs Monthly'!O58+'Outputs Monthly'!O62 -> 26 | J40: 375
C41: # within 2 business days | F41: 103 | G41: 144 | H41: 100 | I41: 26 | J41: 373
C42: % mtg level | F42: =F41/F40 -> 1 | G42: =G41/G40 -> 0.9931034483 | H42: =H41/H40 -> 0.9900990099 | I42: =I41/I40 -> 1 | J42: =J41/J40 -> 0.9946666667
A45: Timeliness Measures #2: Annual Projected % of docket entries entered within X business days after clock in/action taken date.
D46: Performance Measure Standard | E46: # of business days | F46: 10/1/14 - 12/31/14 | G46: 1/1/15 - 3/31/15 | H46: 4/1/15 - 6/30/15 | I46: 7/1/15 - 9/30/15 | K46: =F46 -> 10/1/14 - 12/31/14 | M46: =G46 -> 1/1/15 - 3/31/15 | O46: =H46 -> 4/1/15 - 6/30/15 | Q46: =I46 -> 7/1/15 - 9/30/15
A47: A | B47: Criminal | E47: 38991 | F47: =F11 -> 1st Quarter | G47: =G11 -> 2nd Quarter | H47: 3rd Quarter | I47: 4th Quarter | J47: Year-to-Date | K47: Reason Code | L47: Actions to Improve | M47: Reason Code | N47: Actions to Improve | O47: Reason Code | P47: Actions to Improve | Q47: Reason Code | R47: Actions to Improve
A48: Circuit (defendants) | C48: Total # of docket entries | D48: 0.8 | E48: 3 | F48: 77050 | G48: 79901 | H48: 80971 | I48: 27318 | J48: =SUM(F48:I48) -> 265240
C49: # within 3 business days | F49: 76768 | G49: 79538 | H49: 80690 | I49: 27166 | J49: =SUM(F49:I49) -> 264162
C50: % mtg level | F50: =F49/F48 -> 0.9963400389 | G50: =G49/G48 -> 0.9954568779 | H50: =H49/H48 -> 0.9965296217 | I50: =I49/I48 -> 0.9944359031 | J50: =J49/J48 -> 0.9959357563
A51: County (defendants) | C51: Total # of docket entries | D51: 0.8 | E51: 3 | F51: 44585 | G51: 47649 | H51: 42592 | I51: 13849 | J51: 148675
C52: # within 3 business days | F52: 44316 | G52: 47358 | H52: 42316 | I52: 13793 | J52: 147783
C53: % mtg level | F53: =F52/F51 -> 0.9939665807 | G53: =G52/G51 -> 0.9938928414 | H53: =H52/H51 -> 0.9935199098 | I53: =I52/I51 -> 0.9959563867 | J53: =J52/J51 -> 0.9940003363
A54: Juvenile Delinquency (juveniles) | C54: Total # of docket entries | D54: 0.8 | E54: 3 | F54: 14651 | G54: 16685 | H54: 19898 | I54: 6515 | J54: 57749
C55: # within 3 business days | F55: 14624 | G55: 16644 | H55: 19882 | I55: 6501 | J55: 57651
C56: % mtg level | F56: =F55/F54 -> 0.9981571224 | G56: =G55/G54 -> 0.997542703 | H56: =H55/H54 -> 0.9991958991 | I56: =I55/I54 -> 0.9978511128 | J56: =J55/J54 -> 0.9983030009
A57: Traffic (UTC) | C57: Total # of docket entries | D57: 0.8 | E57: 3 | F57: 34819 | G57: 37092 | H57: 30906 | I57: 10432 | J57: 113249
C58: # within 3 business days | F58: 34616 | G58: 36712 | H58: 30673 | I58: 10350 | J58: 112351
C59: % mtg level | F59: =F58/F57 -> 0.9941698498 | G59: =G58/G57 -> 0.9897552033 | H59: =H58/H57 -> 0.9924610108 | I59: =I58/I57 -> 0.9921395706 | J59: =J58/J57 -> 0.9920705702
A60: B | B60: Civil
A61: Circuit (cases) | C61: Total # of docket entries | D61: 0.8 | E61: 3 | F61: 66488 | G61: 67151 | H61: 62452 | I61: 19285 | J61: 215376
C62: # within 3 business days | F62: 65274 | G62: 66249 | H62: 61689 | I62: 19160 | J62: 212372
C63: % mtg level | F63: =F62/F61 -> 0.9817410661 | G63: =G62/G61 -> 0.9865675865 | H63: =H62/H61 -> 0.987782617 | I63: =I62/I61 -> 0.9935182785 | J63: =J62/J61 -> 0.9860522992
A64: County (cases) | C64: Total # of docket entries | D64: 0.8 | E64: 3 | F64: 20192 | G64: 21952 | H64: 23234 | I64: 8203 | J64: 73581
C65: # within 3 business days | F65: 19750 | G65: 21205 | H65: 23029 | I65: 7946 | J65: 71930
C66: % mtg level | F66: =F65/F64 -> 0.9781101426 | G66: =G65/G64 -> 0.9659712099 | H66: =H65/H64 -> 0.9911767238 | I66: =I65/I64 -> 0.9686699988 | J66: =J65/J64 -> 0.9775621424
A67: Traffic (UTC) | C67: Total # of docket entries | D67: 0.8 | E67: 4 | F67: 25579 | G67: 24988 | H67: 24531 | I67: 8116 | J67: 83214
C68: # within 4 business days | F68: 24971 | G68: 24097 | H68: 23978 | I68: 7979 | J68: 81025
C69: % mtg level | F69: =F68/F67 -> 0.9762305016 | G69: =G68/G67 -> 0.9643428846 | H69: =H68/H67 -> 0.9774570951 | I69: =I68/I67 -> 0.9831197634 | J69: =J68/J67 -> 0.9736943303
A70: Circuit Probate (cases) | C70: Total # of docket entries | D70: 0.8 | E70: 3 | F70: 17582 | G70: 18844 | H70: 20240 | I70: 6567 | J70: 63233
C71: # within 3 business days | F71: 17346 | G71: 18707 | H71: 20123 | I71: 6528 | J71: 62704
C72: % mtg level | F72: =F71/F70 -> 0.9865771812 | G72: =G71/G70 -> 0.9927297814 | H72: =H71/H70 -> 0.9942193676 | I72: =I71/I70 -> 0.9940612152 | J72: =J71/J70 -> 0.9916341151
A73: Family (cases) | C73: Total # of docket entries | D73: 0.8 | E73: 3 | F73: 37962 | G73: 41369 | H73: 45645 | I73: 14245 | J73: 139221
C74: # within 3 business days | F74: 36240 | G74: 40383 | H74: 45212 | I74: 14162 | J74: 135997
C75: % mtg level | F75: =F74/F73 -> 0.9546388494 | G75: =G74/G73 -> 0.976165728 | H75: =H74/H73 -> 0.9905137474 | I75: =I74/I73 -> 0.9941733942 | J75: =J74/J73 -> 0.976842574
A76: Juvenile Dependency (juveniles) | C76: Total # of docket entries | D76: 0.8 | E76: 3 | F76: 6823 | G76: 7882 | H76: 8286 | I76: 2190 | J76: 25181
C77: # within 3 business days | F77: 6754 | G77: 7830 | H77: 8246 | I77: 2188 | J77: 25018
C78: % mtg level | F78: =F77/F76 -> 0.9898871464 | G78: =G77/G76 -> 0.9934026897 | H78: =H77/H76 -> 0.9951725803 | I78: =I77/I76 -> 0.999086758 | J78: =J77/J76 -> 0.9935268655
C81: Notes:
C82: Cases/Defendants output numbers are now pulled from the Outputs Monthly tab of this workbook.

Sheet CAP Count Summary (hidden)
A1: County | B1: TIMELINESS STANDARD ONE (New Cases Opened) | W1: TIMELINESS STANDARD TWO (Docket Entries Processed) | AR1: Sent Date
B2: Circuit Criminal Reason | C2: Improve Action | D2: County Criminal Reason | E2: Improve Action | F2: Juvenile Delinquency Reason | G2: Improve Action | H2: Criminal Traffic Reason | I2: Improve Action | J2: Circuit Civil Reason | K2: Improve Action | L2: County Civil Reason | M2: Improve Action | N2: Civil Traffic Reason | O2: Improve Action | P2: Probate Reason | Q2: Improve Action | R2: Family Reason | S2: Improve Action | T2: Juvenile Dependency Reason | U2: Improve Action | W2: Circuit Criminal Reason | X2: Improve Action | Y2: County Criminal Reason | Z2: Improve Action | AA2: Juvenile Delinquency Reason | AB2: Improve Action | AC2: Criminal Traffic Reason | AD2: Improve Action | AE2: Circuit Civil Reason | AF2: Improve Action | AG2: County Civil Reason | AH2: Improve Action | AI2: Civil Traffic Reason | AJ2: Improve Action | AK2: Probate Reason | AL2: Improve Action | AM2: Family Reason | AN2: Improve Action | AO2: Juvenile Dependency Reason | AP2: Improve Action
A4: Alachua | AR4: 20140220
A5: Baker | AR5: 20140207
A6: Bay | AR6: 20140218
A7: Bradford | AA7: Procedural | AB7: We are a small county with several Supreme Court death warrant appeals that had priority. | AO7: Procedural | AP7: We are a small county with several Supreme Court death warrant appeals that had priority. | AR7: 20140218
A8: Brevard | AR8: 20140218
A9: Broward | P9: E-Filing | Q9: A high percentage of cases are rejected. When cases are resubmitted, the calculation for timeliness is based on the original file date. | AO9: Systems | AP9: The division is still adjusting to new case maintenance system. E-filing should assist with improving the timeliness. | AR9: 20140218
A10: Calhoun | AR10: 20140217
A11: Charlotte | AR11: 20140219
A12: Citrus | AR12: 20140206
A13: Clay | AR13: 20140218
A14: Collier | AR14: 20140220
A15: Columbia | T15: Staffing - Insufficient Personnel | U15: This is a one employee department. Employees in other departments will be used to cover this when employee is out. | AR15: 20140219
A16: Dade | D16: Staffing - Training Required | E16: Training efforts have been completed. We anticipate rate will improve in the next quarter. | AR16: 20140219
A17: Desoto | AR17: 20140206
A18: Dixie
A19: Duval | AR19: 20140225
A20: Escambia | AA20: Staffing - Training Required | AB20: Additional cross training will occur immediatley | AR20: 20140210
A21: Flagler | AR21: 20140214
A22: Franklin | AR22: 20140212
A23: Gadsden | J23: E-Filing | K23: As the problems get worked out this will improve. | AR23: 20140218
A24: Gilchrist
A25: Glades | AI25: Systems | AJ25: Clericus was implemented 9/27/2013 and we are still learning the system. | AR25: 20140224
A26: Gulf | AR26: 20140220
A27: Hamilton | AR27: 20140211
A28: Hardee | AR28: 20140220
A29: Hendry | AR29: 20140219
A30: Hernando | AR30: 20140220
A31: Highlands | AR31: 20140206
A32: Hillsborough | AR32: 20140220
A33: Holmes | AR33: 20140219
A34: Indian River | AR34: 20140208
A35: Jackson | AR35: 20140214
A36: Jefferson | AR36: 20140210
A37: Lafayette | AR37: 20140219
A38: Lake | AR38: 20140219
A39: Lee | AR39: 20140218
A40: Leon | AR40: 20140227
A41: LEVY | AR41: 20140217
A42: Liberty | B42: Staffing - Training Required | C42: Due to the sudden retirement of a 30 year employee, we are training new staff. | D42: Staffing - Training Required | E42: Due to the sudden retirement of a 30 year employee, we are training new staff. | AA42: Staffing - Training Required | AB42: Due to the sudden retirement of a 30 year employee, we are training new staff. | AK42: Staffing - Training Required | AL42: Due to the sudden retirement of a 30 year employee, we are training new staff. | AR42: 20140211
A43: Madison | AR43: 20140214
A44: Manatee | AR44: 20140220
A45: Marion | H45: Procedural | I45: Electornic citations led to errors in entering zeros as O's and O's as zeros in the citation number. We have asked the agencies to use a / thru zeros and staff to be more careful in keying. | AE45: E-Filing | AF45: Established a mandatory 1.5 hrs/day for all civil staff to process efilings | AR45: 20140211
A46: Martin | AR46: 20140217
A47: Monroe | AR47: 20140213
A48: NASSAU | AR48: 20140220
A49: Okaloosa | AR49: 20140211
A50: Okeechobee | AR50: 20140217
A51: Orange | AR51: 20140219
A52: Osceola | N52: Systems | O52: We experienced problems entering traffic citations with our new Case Management System. These problems are being corrected in our next release that will go live on 1/21/2014. Also, in February we go live with Ecitations and this will help speed up the process. | AR52: 20140219
A53: Palm Beach | AR53: 20140213
A54: Pasco | AR54: 20140220
A55: Pinellas | AR55: 20140220
A56: Polk | P56: Procedural | Q56: Standards reviewed with staff when processing paper filings. eFiled cases were the focus when it should've been paper & electronic equally. Cases will be monitored more closely by management. | AR56: 20140220
A57: Putnam | L57: Staffing - Insufficient Personnel | M57: Incidental - Bereavement & Sick Leave | P57: Staffing - Training Required | Q57: Reorganizing Office Staff at this Time | AE57: Staffing - Insufficient Personnel | AF57: Incidental - Bereavement & Sick Leave | AG57: Staffing - Insufficient Personnel | AH57: Incidental - Bereavement & Sick Leave | AK57: Staffing - Insufficient Personnel | AL57: Incidental - Bereavement & Sick Leave | AR57: 20140218
A58: Santa Rosa | AR58: 20140219
A59: Sarasota | AR59: 20140219
A60: Seminole | AR60: 20140207
A61: St. Johns | AR61: 20140214
A62: St. Lucie | AR62: 20140210
A63: Sumter | B63: Staffing - Insufficient Personnel | C63: Additional staff being hired to work in felony division to cover increased filings | AR63: 20140210
A64: Suwannee | Y64: Staffing - Training Required | Z64: Additional training on meeting Performance Measures | AA64: Staffing - Training Required | AB64: Additional training on meeting Performance Measures | AC64: Staffing - Training Required | AD64: Additional training on meeting Performance Measures | AR64: 20140217
A65: Taylor | J65: E-Filing | K65: Correct issues of filings not moving from eportal to CMS | AR65: 20140211
A66: Union | AR66: 20140219
A67: Volusia | AR67: 20140218
A68: Wakulla | AR68: 20140214
A69: Walton | AR69: 20140218
A70: Washington | W70: Other | X70: Coversion, server, and move downtime | AR70: 20140217

Sheet Action Plan Summary
A2: County Fiscal Year 2014 - 2015
A3: Timeliness Quarterly Action Plan Form for CCOC
C5: Report Month of (Quarter Ending): | D5: ='Outputs Monthly'!D6:E6 -> Jun | F5: Contact:
C6: Version #: | D6: ='Outputs Monthly'!D7:E7 -> 1 | F6: Telephone:
C7: County: | D7: ='Outputs Monthly'!D8:E8 -> Brevard | F7: E-mail:
A9: Timeliness Measeure # 1 | B9: Quarter | C9: CCOC Standard | D9: ='Timeliness Quarterly'!E10 -> # of business days | E9: Clerk Performance | F9: Reason Code | G9: Current Actions to Improve
A10: Circuit Criminal | B10: ='Timeliness Quarterly'!$F$10 -> 10/1/14 - 12/31/14 | C10: ='Timeliness Quarterly'!$D$12 -> 0.8 | D10: ='Timeliness Quarterly'!$E$12 -> 2 | E10: =IF(IFERROR('Timeliness Quarterly'!F$14,"error")="error","",IF('Timeliness Quarterly'!F$14<'Timeliness Quarterly'!$D$12,'Timeliness Quarterly'!F$14,"")) ->  | F10: =IF(IFERROR('Timeliness Quarterly'!$K$12,"error")="error","",IF('Timeliness Quarterly'!$K$12=0,"",'Timeliness Quarterly'!$K$12)) ->  | G10: =IF(IFERROR('Timeliness Quarterly'!$L$12,"error")="error","",IF('Timeliness Quarterly'!$L$12=0,"",'Timeliness Quarterly'!$L$12)) -> 
B11: ='Timeliness Quarterly'!$G$10 -> 1/1/15 - 3/31/15 | C11: ='Timeliness Quarterly'!$D$12 -> 0.8 | D11: ='Timeliness Quarterly'!$E$12 -> 2 | E11: =IF(IFERROR('Timeliness Quarterly'!G$14,"error")="error","",IF('Timeliness Quarterly'!G$14<'Timeliness Quarterly'!$D$12,'Timeliness Quarterly'!G$14,"")) ->  | F11: =IF(IFERROR('Timeliness Quarterly'!$M$12,"error")="error","",IF('Timeliness Quarterly'!$M$12=0,"",'Timeliness Quarterly'!$M$12)) ->  | G11: =IF(IFERROR('Timeliness Quarterly'!$N$12,"error")="error","",IF('Timeliness Quarterly'!$N$12=0,"",'Timeliness Quarterly'!$N$12)) -> 
B12: ='Timeliness Quarterly'!$H$10 -> 4/1/15 - 6/30/15 | C12: ='Timeliness Quarterly'!$D$12 -> 0.8 | D12: ='Timeliness Quarterly'!$E$12 -> 2 | E12: =IF(IFERROR('Timeliness Quarterly'!H$14,"error")="error","",IF('Timeliness Quarterly'!H$14<'Timeliness Quarterly'!$D$12,'Timeliness Quarterly'!H$14,"")) ->  | F12: =IF(IFERROR('Timeliness Quarterly'!$O$12,"error")="error","",IF('Timeliness Quarterly'!$O$12=0,"",'Timeliness Quarterly'!$O$12)) ->  | G12: =IF(IFERROR('Timeliness Quarterly'!$P$12,"error")="error","",IF('Timeliness Quarterly'!$P$12=0,"",'Timeliness Quarterly'!$P$12)) -> 
B13: ='Timeliness Quarterly'!$I$10 -> 7/1/15 - 9/30/15 | C13: ='Timeliness Quarterly'!$D$12 -> 0.8 | D13: ='Timeliness Quarterly'!$E$12 -> 2 | E13: =IF(IFERROR('Timeliness Quarterly'!I$14,"error")="error","",IF('Timeliness Quarterly'!I$14<'Timeliness Quarterly'!$D$12,'Timeliness Quarterly'!I$14,"")) ->  | F13: =IF(IFERROR('Timeliness Quarterly'!$Q$12,"error")="error","",IF('Timeliness Quarterly'!$Q$12=0,"",'Timeliness Quarterly'!$Q$12)) ->  | G13: =IF(IFERROR('Timeliness Quarterly'!$R$12,"error")="error","",IF('Timeliness Quarterly'!$R$12=0,"",'Timeliness Quarterly'!$R$12)) -> 
A14: County Criminal | B14: ='Timeliness Quarterly'!$F$10 -> 10/1/14 - 12/31/14 | C14: ='Timeliness Quarterly'!$D$15 -> 0.8 | D14: ='Timeliness Quarterly'!$E$15 -> 3 | E14: =IF(IFERROR('Timeliness Quarterly'!F$17,"error")="error","",IF('Timeliness Quarterly'!F$17<'Timeliness Quarterly'!$D$15,'Timeliness Quarterly'!F$17,"")) ->  | F14: =IF(IFERROR('Timeliness Quarterly'!$K$15,"error")="error","",IF('Timeliness Quarterly'!$K$15=0,"",'Timeliness Quarterly'!$K$15)) ->  | G14: =IF(IFERROR('Timeliness Quarterly'!$L$15,"error")="error","",IF('Timeliness Quarterly'!$L$15=0,"",'Timeliness Quarterly'!$L$15)) -> 
B15: ='Timeliness Quarterly'!$G$10 -> 1/1/15 - 3/31/15 | C15: ='Timeliness Quarterly'!$D$15 -> 0.8 | D15: ='Timeliness Quarterly'!$E$15 -> 3 | E15: =IF(IFERROR('Timeliness Quarterly'!G$17,"error")="error","",IF('Timeliness Quarterly'!G$17<'Timeliness Quarterly'!$D$15,'Timeliness Quarterly'!G$17,"")) ->  | F15: =IF(IFERROR('Timeliness Quarterly'!$M$15,"error")="error","",IF('Timeliness Quarterly'!$M$15=0,"",'Timeliness Quarterly'!$M$15)) ->  | G15: =IF(IFERROR('Timeliness Quarterly'!$N$15,"error")="error","",IF('Timeliness Quarterly'!$N$15=0,"",'Timeliness Quarterly'!$N$15)) -> 
B16: ='Timeliness Quarterly'!$H$10 -> 4/1/15 - 6/30/15 | C16: ='Timeliness Quarterly'!$D$15 -> 0.8 | D16: ='Timeliness Quarterly'!$E$15 -> 3 | E16: =IF(IFERROR('Timeliness Quarterly'!H$17,"error")="error","",IF('Timeliness Quarterly'!H$17<'Timeliness Quarterly'!$D$15,'Timeliness Quarterly'!H$17,"")) ->  | F16: =IF(IFERROR('Timeliness Quarterly'!$O$15,"error")="error","",IF('Timeliness Quarterly'!$O$15=0,"",'Timeliness Quarterly'!$O$15)) ->  | G16: =IF(IFERROR('Timeliness Quarterly'!$P$15,"error")="error","",IF('Timeliness Quarterly'!$P$15=0,"",'Timeliness Quarterly'!$P$15)) -> 
B17: ='Timeliness Quarterly'!$I$10 -> 7/1/15 - 9/30/15 | C17: ='Timeliness Quarterly'!$D$15 -> 0.8 | D17: ='Timeliness Quarterly'!$E$15 -> 3 | E17: =IF(IFERROR('Timeliness Quarterly'!I$17,"error")="error","",IF('Timeliness Quarterly'!I$17<'Timeliness Quarterly'!$D$15,'Timeliness Quarterly'!I$17,"")) ->  | F17: =IF(IFERROR('Timeliness Quarterly'!$Q$15,"error")="error","",IF('Timeliness Quarterly'!$Q$15=0,"",'Timeliness Quarterly'!$Q$15)) ->  | G17: =IF(IFERROR('Timeliness Quarterly'!$R$15,"error")="error","",IF('Timeliness Quarterly'!$R$15=0,"",'Timeliness Quarterly'!$R$15)) -> 
A18: Juvenile Delinquency | B18: ='Timeliness Quarterly'!$F$10 -> 10/1/14 - 12/31/14 | C18: ='Timeliness Quarterly'!$D$18 -> 0.8 | D18: ='Timeliness Quarterly'!$E$18 -> 2 | E18: =IF(IFERROR('Timeliness Quarterly'!F$20,"error")="error","",IF('Timeliness Quarterly'!F$20<'Timeliness Quarterly'!$D$18,'Timeliness Quarterly'!F$20,"")) ->  | F18: =IF(IFERROR('Timeliness Quarterly'!$K$18,"error")="error","",IF('Timeliness Quarterly'!$K$18=0,"",'Timeliness Quarterly'!$K$18)) ->  | G18: =IF(IFERROR('Timeliness Quarterly'!$L$18,"error")="error","",IF('Timeliness Quarterly'!$L$18=0,"",'Timeliness Quarterly'!$L$18)) -> 
B19: ='Timeliness Quarterly'!$G$10 -> 1/1/15 - 3/31/15 | C19: ='Timeliness Quarterly'!$D$18 -> 0.8 | D19: ='Timeliness Quarterly'!$E$18 -> 2 | E19: =IF(IFERROR('Timeliness Quarterly'!G$20,"error")="error","",IF('Timeliness Quarterly'!G$20<'Timeliness Quarterly'!$D$18,'Timeliness Quarterly'!G$20,"")) ->  | F19: =IF(IFERROR('Timeliness Quarterly'!$M$18,"error")="error","",IF('Timeliness Quarterly'!$M$18=0,"",'Timeliness Quarterly'!$M$18)) ->  | G19: =IF(IFERROR('Timeliness Quarterly'!$N$18,"error")="error","",IF('Timeliness Quarterly'!$N$18=0,"",'Timeliness Quarterly'!$N$18)) -> 
B20: ='Timeliness Quarterly'!$H$10 -> 4/1/15 - 6/30/15 | C20: ='Timeliness Quarterly'!$D$18 -> 0.8 | D20: ='Timeliness Quarterly'!$E$18 -> 2 | E20: =IF(IFERROR('Timeliness Quarterly'!H$20,"error")="error","",IF('Timeliness Quarterly'!H$20<'Timeliness Quarterly'!$D$18,'Timeliness Quarterly'!H$20,"")) ->  | F20: =IF(IFERROR('Timeliness Quarterly'!$O$18,"error")="error","",IF('Timeliness Quarterly'!$O$18=0,"",'Timeliness Quarterly'!$O$18)) ->  | G20: =IF(IFERROR('Timeliness Quarterly'!$P$18,"error")="error","",IF('Timeliness Quarterly'!$P$18=0,"",'Timeliness Quarterly'!$P$18)) -> 
B21: ='Timeliness Quarterly'!$I$10 -> 7/1/15 - 9/30/15 | C21: ='Timeliness Quarterly'!$D$18 -> 0.8 | D21: ='Timeliness Quarterly'!$E$18 -> 2 | E21: =IF(IFERROR('Timeliness Quarterly'!I$20,"error")="error","",IF('Timeliness Quarterly'!I$20<'Timeliness Quarterly'!$D$18,'Timeliness Quarterly'!I$20,"")) ->  | F21: =IF(IFERROR('Timeliness Quarterly'!$Q$18,"error")="error","",IF('Timeliness Quarterly'!$Q$18=0,"",'Timeliness Quarterly'!$Q$18)) ->  | G21: =IF(IFERROR('Timeliness Quarterly'!$R$18,"error")="error","",IF('Timeliness Quarterly'!$R$18=0,"",'Timeliness Quarterly'!$R$18)) -> 
A22: Criminal Traffic | B22: ='Timeliness Quarterly'!$F$10 -> 10/1/14 - 12/31/14 | C22: ='Timeliness Quarterly'!$D$21 -> 0.8 | D22: ='Timeliness Quarterly'!$E$21 -> 3 | E22: =IF(IFERROR('Timeliness Quarterly'!F$23,"error")="error","",IF('Timeliness Quarterly'!F$23<'Timeliness Quarterly'!$D$21,'Timeliness Quarterly'!F$23,"")) ->  | F22: =IF(IFERROR('Timeliness Quarterly'!$K$21,"error")="error","",IF('Timeliness Quarterly'!$K$21=0,"",'Timeliness Quarterly'!$K$21)) ->  | G22: =IF(IFERROR('Timeliness Quarterly'!$L$21,"error")="error","",IF('Timeliness Quarterly'!$L$21=0,"",'Timeliness Quarterly'!$L$21)) -> 
B23: ='Timeliness Quarterly'!$G$10 -> 1/1/15 - 3/31/15 | C23: ='Timeliness Quarterly'!$D$21 -> 0.8 | D23: ='Timeliness Quarterly'!$E$21 -> 3 | E23: =IF(IFERROR('Timeliness Quarterly'!G$23,"error")="error","",IF('Timeliness Quarterly'!G$23<'Timeliness Quarterly'!$D$21,'Timeliness Quarterly'!G$23,"")) ->  | F23: =IF(IFERROR('Timeliness Quarterly'!$M$21,"error")="error","",IF('Timeliness Quarterly'!$M$21=0,"",'Timeliness Quarterly'!$M$21)) ->  | G23: =IF(IFERROR('Timeliness Quarterly'!$N$21,"error")="error","",IF('Timeliness Quarterly'!$N$21=0,"",'Timeliness Quarterly'!$N$21)) -> 
B24: ='Timeliness Quarterly'!$H$10 -> 4/1/15 - 6/30/15 | C24: ='Timeliness Quarterly'!$D$21 -> 0.8 | D24: ='Timeliness Quarterly'!$E$21 -> 3 | E24: =IF(IFERROR('Timeliness Quarterly'!H$23,"error")="error","",IF('Timeliness Quarterly'!H$23<'Timeliness Quarterly'!$D$21,'Timeliness Quarterly'!H$23,"")) ->  | F24: =IF(IFERROR('Timeliness Quarterly'!$O$21,"error")="error","",IF('Timeliness Quarterly'!$O$21=0,"",'Timeliness Quarterly'!$O$21)) ->  | G24: =IF(IFERROR('Timeliness Quarterly'!$P$21,"error")="error","",IF('Timeliness Quarterly'!$P$21=0,"",'Timeliness Quarterly'!$P$21)) -> 
B25: ='Timeliness Quarterly'!$I$10 -> 7/1/15 - 9/30/15 | C25: ='Timeliness Quarterly'!$D$21 -> 0.8 | D25: ='Timeliness Quarterly'!$E$21 -> 3 | E25: =IF(IFERROR('Timeliness Quarterly'!I$23,"error")="error","",IF('Timeliness Quarterly'!I$23<'Timeliness Quarterly'!$D$21,'Timeliness Quarterly'!I$23,"")) ->  | F25: =IF(IFERROR('Timeliness Quarterly'!$Q$21,"error")="error","",IF('Timeliness Quarterly'!$Q$21=0,"",'Timeliness Quarterly'!$Q$21)) ->  | G25: =IF(IFERROR('Timeliness Quarterly'!$R$21,"error")="error","",IF('Timeliness Quarterly'!$R$21=0,"",'Timeliness Quarterly'!$R$21)) -> 
A26: Circuit Civil | B26: ='Timeliness Quarterly'!$F$10 -> 10/1/14 - 12/31/14 | C26: ='Timeliness Quarterly'!$D$25 -> 0.8 | D26: ='Timeliness Quarterly'!$E$25 -> 2 | E26: =IF(IFERROR('Timeliness Quarterly'!F$27,"error")="error","",IF('Timeliness Quarterly'!F$27<'Timeliness Quarterly'!$D$25,'Timeliness Quarterly'!F$27,"")) ->  | F26: =IF(IFERROR('Timeliness Quarterly'!$K$25,"error")="error","",IF('Timeliness Quarterly'!$K$25=0,"",'Timeliness Quarterly'!$K$25)) ->  | G26: =IF(IFERROR('Timeliness Quarterly'!$L$25,"error")="error","",IF('Timeliness Quarterly'!$L$25=0,"",'Timeliness Quarterly'!$L$25)) -> 
B27: ='Timeliness Quarterly'!$G$10 -> 1/1/15 - 3/31/15 | C27: ='Timeliness Quarterly'!$D$25 -> 0.8 | D27: ='Timeliness Quarterly'!$E$25 -> 2 | E27: =IF(IFERROR('Timeliness Quarterly'!G$27,"error")="error","",IF('Timeliness Quarterly'!G$27<'Timeliness Quarterly'!$D$25,'Timeliness Quarterly'!G$27,"")) ->  | F27: =IF(IFERROR('Timeliness Quarterly'!$M$25,"error")="error","",IF('Timeliness Quarterly'!$M$25=0,"",'Timeliness Quarterly'!$M$25)) ->  | G27: =IF(IFERROR('Timeliness Quarterly'!$N$25,"error")="error","",IF('Timeliness Quarterly'!$N$25=0,"",'Timeliness Quarterly'!$N$25)) -> 
B28: ='Timeliness Quarterly'!$H$10 -> 4/1/15 - 6/30/15 | C28: ='Timeliness Quarterly'!$D$25 -> 0.8 | D28: ='Timeliness Quarterly'!$E$25 -> 2 | E28: =IF(IFERROR('Timeliness Quarterly'!H$27,"error")="error","",IF('Timeliness Quarterly'!H$27<'Timeliness Quarterly'!$D$25,'Timeliness Quarterly'!H$27,"")) ->  | F28: =IF(IFERROR('Timeliness Quarterly'!$O$25,"error")="error","",IF('Timeliness Quarterly'!$O$25=0,"",'Timeliness Quarterly'!$O$25)) ->  | G28: =IF(IFERROR('Timeliness Quarterly'!$P$25,"error")="error","",IF('Timeliness Quarterly'!$P$25=0,"",'Timeliness Quarterly'!$P$25)) -> 
B29: ='Timeliness Quarterly'!$I$10 -> 7/1/15 - 9/30/15 | C29: ='Timeliness Quarterly'!$D$25 -> 0.8 | D29: ='Timeliness Quarterly'!$E$25 -> 2 | E29: =IF(IFERROR('Timeliness Quarterly'!I$27,"error")="error","",IF('Timeliness Quarterly'!I$27<'Timeliness Quarterly'!$D$25,'Timeliness Quarterly'!I$27,"")) ->  | F29: =IF(IFERROR('Timeliness Quarterly'!$Q$25,"error")="error","",IF('Timeliness Quarterly'!$Q$25=0,"",'Timeliness Quarterly'!$Q$25)) ->  | G29: =IF(IFERROR('Timeliness Quarterly'!$R$25,"error")="error","",IF('Timeliness Quarterly'!$R$25=0,"",'Timeliness Quarterly'!$R$25)) -> 
A30: County Civil | B30: ='Timeliness Quarterly'!$F$10 -> 10/1/14 - 12/31/14 | C30: ='Timeliness Quarterly'!$D$28 -> 0.8 | D30: ='Timeliness Quarterly'!$E$28 -> 2 | E30: =IF(IFERROR('Timeliness Quarterly'!F$30,"error")="error","",IF('Timeliness Quarterly'!F$30<'Timeliness Quarterly'!$D$28,'Timeliness Quarterly'!F$30,"")) ->  | F30: =IF(IFERROR('Timeliness Quarterly'!$K$28,"error")="error","",IF('Timeliness Quarterly'!$K$28=0,"",'Timeliness Quarterly'!$K$28)) ->  | G30: =IF(IFERROR('Timeliness Quarterly'!$L$28,"error")="error","",IF('Timeliness Quarterly'!$L$28=0,"",'Timeliness Quarterly'!$L$28)) -> 
B31: ='Timeliness Quarterly'!$G$10 -> 1/1/15 - 3/31/15 | C31: ='Timeliness Quarterly'!$D$28 -> 0.8 | D31: ='Timeliness Quarterly'!$E$28 -> 2 | E31: =IF(IFERROR('Timeliness Quarterly'!G$30,"error")="error","",IF('Timeliness Quarterly'!G$30<'Timeliness Quarterly'!$D$28,'Timeliness Quarterly'!G$30,"")) ->  | F31: =IF(IFERROR('Timeliness Quarterly'!$M$28,"error")="error","",IF('Timeliness Quarterly'!$M$28=0,"",'Timeliness Quarterly'!$M$28)) ->  | G31: =IF(IFERROR('Timeliness Quarterly'!$N$28,"error")="error","",IF('Timeliness Quarterly'!$N$28=0,"",'Timeliness Quarterly'!$N$28)) -> 
B32: ='Timeliness Quarterly'!$H$10 -> 4/1/15 - 6/30/15 | C32: ='Timeliness Quarterly'!$D$28 -> 0.8 | D32: ='Timeliness Quarterly'!$E$28 -> 2 | E32: =IF(IFERROR('Timeliness Quarterly'!H$30,"error")="error","",IF('Timeliness Quarterly'!H$30<'Timeliness Quarterly'!$D$28,'Timeliness Quarterly'!H$30,"")) ->  | F32: =IF(IFERROR('Timeliness Quarterly'!$O$28,"error")="error","",IF('Timeliness Quarterly'!$O$28=0,"",'Timeliness Quarterly'!$O$28)) ->  | G32: =IF(IFERROR('Timeliness Quarterly'!$P$28,"error")="error","",IF('Timeliness Quarterly'!$P$28=0,"",'Timeliness Quarterly'!$P$28)) -> 
B33: ='Timeliness Quarterly'!$I$10 -> 7/1/15 - 9/30/15 | C33: ='Timeliness Quarterly'!$D$28 -> 0.8 | D33: ='Timeliness Quarterly'!$E$28 -> 2 | E33: =IF(IFERROR('Timeliness Quarterly'!I$30,"error")="error","",IF('Timeliness Quarterly'!I$30<'Timeliness Quarterly'!$D$28,'Timeliness Quarterly'!I$30,"")) ->  | F33: =IF(IFERROR('Timeliness Quarterly'!$Q$28,"error")="error","",IF('Timeliness Quarterly'!$Q$28=0,"",'Timeliness Quarterly'!$Q$28)) ->  | G33: =IF(IFERROR('Timeliness Quarterly'!$R$28,"error")="error","",IF('Timeliness Quarterly'!$R$28=0,"",'Timeliness Quarterly'!$R$28)) -> 
A34: Civil Traffic | B34: ='Timeliness Quarterly'!$F$10 -> 10/1/14 - 12/31/14 | C34: ='Timeliness Quarterly'!$D$31 -> 0.8 | D34: ='Timeliness Quarterly'!$E$31 -> 4 | E34: =IF(IFERROR('Timeliness Quarterly'!F$33,"error")="error","",IF('Timeliness Quarterly'!F$33<'Timeliness Quarterly'!$D$31,'Timeliness Quarterly'!F$33,"")) ->  | F34: =IF(IFERROR('Timeliness Quarterly'!$K$31,"error")="error","",IF('Timeliness Quarterly'!$K$31=0,"",'Timeliness Quarterly'!$K$31)) ->  | G34: =IF(IFERROR('Timeliness Quarterly'!$L$31,"error")="error","",IF('Timeliness Quarterly'!$L$31=0,"",'Timeliness Quarterly'!$L$31)) -> 
B35: ='Timeliness Quarterly'!$G$10 -> 1/1/15 - 3/31/15 | C35: ='Timeliness Quarterly'!$D$31 -> 0.8 | D35: ='Timeliness Quarterly'!$E$31 -> 4 | E35: =IF(IFERROR('Timeliness Quarterly'!G$33,"error")="error","",IF('Timeliness Quarterly'!G$33<'Timeliness Quarterly'!$D$31,'Timeliness Quarterly'!G$33,"")) ->  | F35: =IF(IFERROR('Timeliness Quarterly'!$M$31,"error")="error","",IF('Timeliness Quarterly'!$M$31=0,"",'Timeliness Quarterly'!$M$31)) ->  | G35: =IF(IFERROR('Timeliness Quarterly'!$N$31,"error")="error","",IF('Timeliness Quarterly'!$N$31=0,"",'Timeliness Quarterly'!$N$31)) -> 
B36: ='Timeliness Quarterly'!$H$10 -> 4/1/15 - 6/30/15 | C36: ='Timeliness Quarterly'!$D$31 -> 0.8 | D36: ='Timeliness Quarterly'!$E$31 -> 4 | E36: =IF(IFERROR('Timeliness Quarterly'!H$33,"error")="error","",IF('Timeliness Quarterly'!H$33<'Timeliness Quarterly'!$D$31,'Timeliness Quarterly'!H$33,"")) ->  | F36: =IF(IFERROR('Timeliness Quarterly'!$O$31,"error")="error","",IF('Timeliness Quarterly'!$O$31=0,"",'Timeliness Quarterly'!$O$31)) ->  | G36: =IF(IFERROR('Timeliness Quarterly'!$P$31,"error")="error","",IF('Timeliness Quarterly'!$P$31=0,"",'Timeliness Quarterly'!$P$31)) -> 
B37: ='Timeliness Quarterly'!$I$10 -> 7/1/15 - 9/30/15 | C37: ='Timeliness Quarterly'!$D$31 -> 0.8 | D37: ='Timeliness Quarterly'!$E$31 -> 4 | E37: =IF(IFERROR('Timeliness Quarterly'!I$33,"error")="error","",IF('Timeliness Quarterly'!I$33<'Timeliness Quarterly'!$D$31,'Timeliness Quarterly'!I$33,"")) ->  | F37: =IF(IFERROR('Timeliness Quarterly'!$Q$31,"error")="error","",IF('Timeliness Quarterly'!$Q$31=0,"",'Timeliness Quarterly'!$Q$31)) ->  | G37: =IF(IFERROR('Timeliness Quarterly'!$R$31,"error")="error","",IF('Timeliness Quarterly'!$R$31=0,"",'Timeliness Quarterly'!$R$31)) -> 
A38: Probate | B38: ='Timeliness Quarterly'!$F$10 -> 10/1/14 - 12/31/14 | C38: ='Timeliness Quarterly'!$D$34 -> 0.8 | D38: ='Timeliness Quarterly'!$E$34 -> 2 | E38: =IF(IFERROR('Timeliness Quarterly'!F$36,"error")="error","",IF('Timeliness Quarterly'!F$36<'Timeliness Quarterly'!$D$34,'Timeliness Quarterly'!F$36,"")) ->  | F38: =IF(IFERROR('Timeliness Quarterly'!$K$34,"error")="error","",IF('Timeliness Quarterly'!$K$34=0,"",'Timeliness Quarterly'!$K$34)) ->  | G38: =IF(IFERROR('Timeliness Quarterly'!$L$34,"error")="error","",IF('Timeliness Quarterly'!$L$34=0,"",'Timeliness Quarterly'!$L$34)) -> 
B39: ='Timeliness Quarterly'!$G$10 -> 1/1/15 - 3/31/15 | C39: ='Timeliness Quarterly'!$D$34 -> 0.8 | D39: ='Timeliness Quarterly'!$E$34 -> 2 | E39: =IF(IFERROR('Timeliness Quarterly'!G$36,"error")="error","",IF('Timeliness Quarterly'!G$36<'Timeliness Quarterly'!$D$34,'Timeliness Quarterly'!G$36,"")) ->  | F39: =IF(IFERROR('Timeliness Quarterly'!$M$34,"error")="error","",IF('Timeliness Quarterly'!$M$34=0,"",'Timeliness Quarterly'!$M$34)) ->  | G39: =IF(IFERROR('Timeliness Quarterly'!$N$34,"error")="error","",IF('Timeliness Quarterly'!$N$34=0,"",'Timeliness Quarterly'!$N$34)) -> 
B40: ='Timeliness Quarterly'!$H$10 -> 4/1/15 - 6/30/15 | C40: ='Timeliness Quarterly'!$D$34 -> 0.8 | D40: ='Timeliness Quarterly'!$E$34 -> 2 | E40: =IF(IFERROR('Timeliness Quarterly'!H$36,"error")="error","",IF('Timeliness Quarterly'!H$36<'Timeliness Quarterly'!$D$34,'Timeliness Quarterly'!H$36,"")) ->  | F40: =IF(IFERROR('Timeliness Quarterly'!$O$34,"error")="error","",IF('Timeliness Quarterly'!$O$34=0,"",'Timeliness Quarterly'!$O$34)) ->  | G40: =IF(IFERROR('Timeliness Quarterly'!$P$34,"error")="error","",IF('Timeliness Quarterly'!$P$34=0,"",'Timeliness Quarterly'!$P$34)) -> 
B41: ='Timeliness Quarterly'!$I$10 -> 7/1/15 - 9/30/15 | C41: ='Timeliness Quarterly'!$D$34 -> 0.8 | D41: ='Timeliness Quarterly'!$E$34 -> 2 | E41: =IF(IFERROR('Timeliness Quarterly'!I$36,"error")="error","",IF('Timeliness Quarterly'!I$36<'Timeliness Quarterly'!$D$34,'Timeliness Quarterly'!I$36,"")) ->  | F41: =IF(IFERROR('Timeliness Quarterly'!$Q$34,"error")="error","",IF('Timeliness Quarterly'!$Q$34=0,"",'Timeliness Quarterly'!$Q$34)) ->  | G41: =IF(IFERROR('Timeliness Quarterly'!$R$34,"error")="error","",IF('Timeliness Quarterly'!$R$34=0,"",'Timeliness Quarterly'!$R$34)) -> 
A42: Family | B42: ='Timeliness Quarterly'!$F$10 -> 10/1/14 - 12/31/14 | C42: ='Timeliness Quarterly'!$D$37 -> 0.8 | D42: ='Timeliness Quarterly'!$E$37 -> 3 | E42: =IF(IFERROR('Timeliness Quarterly'!F$39,"error")="error","",IF('Timeliness Quarterly'!F$39<'Timeliness Quarterly'!$D$37,'Timeliness Quarterly'!F$39,"")) ->  | F42: =IF(IFERROR('Timeliness Quarterly'!$K$37,"error")="error","",IF('Timeliness Quarterly'!$K$37=0,"",'Timeliness Quarterly'!$K$37)) ->  | G42: =IF(IFERROR('Timeliness Quarterly'!$L$37,"error")="error","",IF('Timeliness Quarterly'!$L$37=0,"",'Timeliness Quarterly'!$L$37)) -> 
B43: ='Timeliness Quarterly'!$G$10 -> 1/1/15 - 3/31/15 | C43: ='Timeliness Quarterly'!$D$37 -> 0.8 | D43: ='Timeliness Quarterly'!$E$37 -> 3 | E43: =IF(IFERROR('Timeliness Quarterly'!G$39,"error")="error","",IF('Timeliness Quarterly'!G$39<'Timeliness Quarterly'!$D$37,'Timeliness Quarterly'!G$39,"")) ->  | F43: =IF(IFERROR('Timeliness Quarterly'!$M$37,"error")="error","",IF('Timeliness Quarterly'!$M$37=0,"",'Timeliness Quarterly'!$M$37)) ->  | G43: =IF(IFERROR('Timeliness Quarterly'!$N$37,"error")="error","",IF('Timeliness Quarterly'!$N$37=0,"",'Timeliness Quarterly'!$N$37)) -> 
B44: ='Timeliness Quarterly'!$H$10 -> 4/1/15 - 6/30/15 | C44: ='Timeliness Quarterly'!$D$37 -> 0.8 | D44: ='Timeliness Quarterly'!$E$37 -> 3 | E44: =IF(IFERROR('Timeliness Quarterly'!H$39,"error")="error","",IF('Timeliness Quarterly'!H$39<'Timeliness Quarterly'!$D$37,'Timeliness Quarterly'!H$39,"")) ->  | F44: =IF(IFERROR('Timeliness Quarterly'!$O$37,"error")="error","",IF('Timeliness Quarterly'!$O$37=0,"",'Timeliness Quarterly'!$O$37)) ->  | G44: =IF(IFERROR('Timeliness Quarterly'!$P$37,"error")="error","",IF('Timeliness Quarterly'!$P$37=0,"",'Timeliness Quarterly'!$P$37)) -> 
B45: ='Timeliness Quarterly'!$I$10 -> 7/1/15 - 9/30/15 | C45: ='Timeliness Quarterly'!$D$37 -> 0.8 | D45: ='Timeliness Quarterly'!$E$37 -> 3 | E45: =IF(IFERROR('Timeliness Quarterly'!I$39,"error")="error","",IF('Timeliness Quarterly'!I$39<'Timeliness Quarterly'!$D$37,'Timeliness Quarterly'!I$39,"")) ->  | F45: =IF(IFERROR('Timeliness Quarterly'!$Q$37,"error")="error","",IF('Timeliness Quarterly'!$Q$37=0,"",'Timeliness Quarterly'!$Q$37)) ->  | G45: =IF(IFERROR('Timeliness Quarterly'!$R$37,"error")="error","",IF('Timeliness Quarterly'!$R$37=0,"",'Timeliness Quarterly'!$R$37)) -> 
A46: Juvenile Dependency | B46: ='Timeliness Quarterly'!$F$10 -> 10/1/14 - 12/31/14 | C46: ='Timeliness Quarterly'!$D$40 -> 0.8 | D46: ='Timeliness Quarterly'!$E$40 -> 2 | E46: =IF(IFERROR('Timeliness Quarterly'!F$42,"error")="error","",IF('Timeliness Quarterly'!F$42<'Timeliness Quarterly'!$D$40,'Timeliness Quarterly'!F$42,"")) ->  | F46: =IF(IFERROR('Timeliness Quarterly'!$K$40,"error")="error","",IF('Timeliness Quarterly'!$K$40=0,"",'Timeliness Quarterly'!$K$40)) ->  | G46: =IF(IFERROR('Timeliness Quarterly'!$L$40,"error")="error","",IF('Timeliness Quarterly'!$L$40=0,"",'Timeliness Quarterly'!$L$40)) -> 
B47: ='Timeliness Quarterly'!$G$10 -> 1/1/15 - 3/31/15 | C47: ='Timeliness Quarterly'!$D$40 -> 0.8 | D47: ='Timeliness Quarterly'!$E$40 -> 2 | E47: =IF(IFERROR('Timeliness Quarterly'!G$42,"error")="error","",IF('Timeliness Quarterly'!G$42<'Timeliness Quarterly'!$D$40,'Timeliness Quarterly'!G$42,"")) ->  | F47: =IF(IFERROR('Timeliness Quarterly'!$M$40,"error")="error","",IF('Timeliness Quarterly'!$M$40=0,"",'Timeliness Quarterly'!$M$40)) ->  | G47: =IF(IFERROR('Timeliness Quarterly'!$N$40,"error")="error","",IF('Timeliness Quarterly'!$N$40=0,"",'Timeliness Quarterly'!$N$40)) -> 
B48: ='Timeliness Quarterly'!$H$10 -> 4/1/15 - 6/30/15 | C48: ='Timeliness Quarterly'!$D$40 -> 0.8 | D48: ='Timeliness Quarterly'!$E$40 -> 2 | E48: =IF(IFERROR('Timeliness Quarterly'!H$42,"error")="error","",IF('Timeliness Quarterly'!H$42<'Timeliness Quarterly'!$D$40,'Timeliness Quarterly'!H$42,"")) ->  | F48: =IF(IFERROR('Timeliness Quarterly'!$O$40,"error")="error","",IF('Timeliness Quarterly'!$O$40=0,"",'Timeliness Quarterly'!$O$40)) ->  | G48: =IF(IFERROR('Timeliness Quarterly'!$P$40,"error")="error","",IF('Timeliness Quarterly'!$P$40=0,"",'Timeliness Quarterly'!$P$40)) -> 
B49: ='Timeliness Quarterly'!$I$10 -> 7/1/15 - 9/30/15 | C49: ='Timeliness Quarterly'!$D$40 -> 0.8 | D49: ='Timeliness Quarterly'!$E$40 -> 2 | E49: =IF(IFERROR('Timeliness Quarterly'!I$42,"error")="error","",IF('Timeliness Quarterly'!I$42<'Timeliness Quarterly'!$D$40,'Timeliness Quarterly'!I$42,"")) ->  | F49: =IF(IFERROR('Timeliness Quarterly'!$Q$40,"error")="error","",IF('Timeliness Quarterly'!$Q$40=0,"",'Timeliness Quarterly'!$Q$40)) ->  | G49: =IF(IFERROR('Timeliness Quarterly'!$R$40,"error")="error","",IF('Timeliness Quarterly'!$R$40=0,"",'Timeliness Quarterly'!$R$40)) -> 
A52: Timeliness Measeure # 2 | B52: Quarter | C52: CCOC Standard | D52: ='Timeliness Quarterly'!E46 -> # of business days | E52: Clerk Performance | F52: Reason Code | G52: Current Actions to Improve
A53: Circuit Criminal | B53: ='Timeliness Quarterly'!$F$46 -> 10/1/14 - 12/31/14 | C53: ='Timeliness Quarterly'!$D$48 -> 0.8 | D53: ='Timeliness Quarterly'!$E$48 -> 3 | E53: =IF(IFERROR('Timeliness Quarterly'!F$50,"error")="error","",IF('Timeliness Quarterly'!F$50<'Timeliness Quarterly'!$D$48,'Timeliness Quarterly'!F$50,"")) ->  | F53: =IF(IFERROR('Timeliness Quarterly'!$K$48,"error")="error","",IF('Timeliness Quarterly'!$K$48=0,"",'Timeliness Quarterly'!$K$48)) ->  | G53: =IF(IFERROR('Timeliness Quarterly'!$L$48,"error")="error","",IF('Timeliness Quarterly'!$L$48=0,"",'Timeliness Quarterly'!$L$48)) -> 
B54: ='Timeliness Quarterly'!$G$46 -> 1/1/15 - 3/31/15 | C54: ='Timeliness Quarterly'!$D$48 -> 0.8 | D54: ='Timeliness Quarterly'!$E$48 -> 3 | E54: =IF(IFERROR('Timeliness Quarterly'!G$50,"error")="error","",IF('Timeliness Quarterly'!G$50<'Timeliness Quarterly'!$D$48,'Timeliness Quarterly'!G$50,"")) ->  | F54: =IF(IFERROR('Timeliness Quarterly'!$M$48,"error")="error","",IF('Timeliness Quarterly'!$M$48=0,"",'Timeliness Quarterly'!$M$48)) ->  | G54: =IF(IFERROR('Timeliness Quarterly'!$N$48,"error")="error","",IF('Timeliness Quarterly'!$N$48=0,"",'Timeliness Quarterly'!$N$48)) -> 
B55: ='Timeliness Quarterly'!$H$46 -> 4/1/15 - 6/30/15 | C55: ='Timeliness Quarterly'!$D$48 -> 0.8 | D55: ='Timeliness Quarterly'!$E$48 -> 3 | E55: =IF(IFERROR('Timeliness Quarterly'!H$50,"error")="error","",IF('Timeliness Quarterly'!H$50<'Timeliness Quarterly'!$D$48,'Timeliness Quarterly'!H$50,"")) ->  | F55: =IF(IFERROR('Timeliness Quarterly'!$O$48,"error")="error","",IF('Timeliness Quarterly'!$O$48=0,"",'Timeliness Quarterly'!$O$48)) ->  | G55: =IF(IFERROR('Timeliness Quarterly'!$P$48,"error")="error","",IF('Timeliness Quarterly'!$P$48=0,"",'Timeliness Quarterly'!$P$48)) -> 
B56: ='Timeliness Quarterly'!$I$46 -> 7/1/15 - 9/30/15 | C56: ='Timeliness Quarterly'!$D$48 -> 0.8 | D56: ='Timeliness Quarterly'!$E$48 -> 3 | E56: =IF(IFERROR('Timeliness Quarterly'!I$50,"error")="error","",IF('Timeliness Quarterly'!I$50<'Timeliness Quarterly'!$D$48,'Timeliness Quarterly'!I$50,"")) ->  | F56: =IF(IFERROR('Timeliness Quarterly'!$Q$48,"error")="error","",IF('Timeliness Quarterly'!$Q$48=0,"",'Timeliness Quarterly'!$Q$48)) ->  | G56: =IF(IFERROR('Timeliness Quarterly'!$R$48,"error")="error","",IF('Timeliness Quarterly'!$R$48=0,"",'Timeliness Quarterly'!$R$48)) -> 
A57: County Criminal | B57: ='Timeliness Quarterly'!$F$46 -> 10/1/14 - 12/31/14 | C57: ='Timeliness Quarterly'!$D$51 -> 0.8 | D57: ='Timeliness Quarterly'!$E$51 -> 3 | E57: =IF(IFERROR('Timeliness Quarterly'!F$53,"error")="error","",IF('Timeliness Quarterly'!F$53<'Timeliness Quarterly'!$D$51,'Timeliness Quarterly'!F$53,"")) ->  | F57: =IF(IFERROR('Timeliness Quarterly'!$K$51,"error")="error","",IF('Timeliness Quarterly'!$K$51=0,"",'Timeliness Quarterly'!$K$51)) ->  | G57: =IF(IFERROR('Timeliness Quarterly'!$L$51,"error")="error","",IF('Timeliness Quarterly'!$L$51=0,"",'Timeliness Quarterly'!$L$51)) -> 
B58: ='Timeliness Quarterly'!$G$46 -> 1/1/15 - 3/31/15 | C58: ='Timeliness Quarterly'!$D$51 -> 0.8 | D58: ='Timeliness Quarterly'!$E$51 -> 3 | E58: =IF(IFERROR('Timeliness Quarterly'!G$53,"error")="error","",IF('Timeliness Quarterly'!G$53<'Timeliness Quarterly'!$D$51,'Timeliness Quarterly'!G$53,"")) ->  | F58: =IF(IFERROR('Timeliness Quarterly'!$M$51,"error")="error","",IF('Timeliness Quarterly'!$M$51=0,"",'Timeliness Quarterly'!$M$51)) ->  | G58: =IF(IFERROR('Timeliness Quarterly'!$N$51,"error")="error","",IF('Timeliness Quarterly'!$N$51=0,"",'Timeliness Quarterly'!$N$51)) -> 
B59: ='Timeliness Quarterly'!$H$46 -> 4/1/15 - 6/30/15 | C59: ='Timeliness Quarterly'!$D$51 -> 0.8 | D59: ='Timeliness Quarterly'!$E$51 -> 3 | E59: =IF(IFERROR('Timeliness Quarterly'!H$53,"error")="error","",IF('Timeliness Quarterly'!H$53<'Timeliness Quarterly'!$D$51,'Timeliness Quarterly'!H$53,"")) ->  | F59: =IF(IFERROR('Timeliness Quarterly'!$O$51,"error")="error","",IF('Timeliness Quarterly'!$O$51=0,"",'Timeliness Quarterly'!$O$51)) ->  | G59: =IF(IFERROR('Timeliness Quarterly'!$P$51,"error")="error","",IF('Timeliness Quarterly'!$P$51=0,"",'Timeliness Quarterly'!$P$51)) -> 
B60: ='Timeliness Quarterly'!$I$46 -> 7/1/15 - 9/30/15 | C60: ='Timeliness Quarterly'!$D$51 -> 0.8 | D60: ='Timeliness Quarterly'!$E$51 -> 3 | E60: =IF(IFERROR('Timeliness Quarterly'!I$53,"error")="error","",IF('Timeliness Quarterly'!I$53<'Timeliness Quarterly'!$D$51,'Timeliness Quarterly'!I$53,"")) ->  | F60: =IF(IFERROR('Timeliness Quarterly'!$Q$51,"error")="error","",IF('Timeliness Quarterly'!$Q$51=0,"",'Timeliness Quarterly'!$Q$51)) ->  | G60: =IF(IFERROR('Timeliness Quarterly'!$R$51,"error")="error","",IF('Timeliness Quarterly'!$R$51=0,"",'Timeliness Quarterly'!$R$51)) -> 
A61: Juvenile Delinquency | B61: ='Timeliness Quarterly'!$F$46 -> 10/1/14 - 12/31/14 | C61: ='Timeliness Quarterly'!$D$54 -> 0.8 | D61: ='Timeliness Quarterly'!$E$54 -> 3 | E61: =IF(IFERROR('Timeliness Quarterly'!F$56,"error")="error","",IF('Timeliness Quarterly'!F$56<'Timeliness Quarterly'!$D$54,'Timeliness Quarterly'!F$56,"")) ->  | F61: =IF(IFERROR('Timeliness Quarterly'!$K$54,"error")="error","",IF('Timeliness Quarterly'!$K$54=0,"",'Timeliness Quarterly'!$K$54)) ->  | G61: =IF(IFERROR('Timeliness Quarterly'!$L$54,"error")="error","",IF('Timeliness Quarterly'!$L$54=0,"",'Timeliness Quarterly'!$L$54)) -> 
B62: ='Timeliness Quarterly'!$G$46 -> 1/1/15 - 3/31/15 | C62: ='Timeliness Quarterly'!$D$54 -> 0.8 | D62: ='Timeliness Quarterly'!$E$54 -> 3 | E62: =IF(IFERROR('Timeliness Quarterly'!G$56,"error")="error","",IF('Timeliness Quarterly'!G$56<'Timeliness Quarterly'!$D$54,'Timeliness Quarterly'!G$56,"")) ->  | F62: =IF(IFERROR('Timeliness Quarterly'!$M$54,"error")="error","",IF('Timeliness Quarterly'!$M$54=0,"",'Timeliness Quarterly'!$M$54)) ->  | G62: =IF(IFERROR('Timeliness Quarterly'!$N$54,"error")="error","",IF('Timeliness Quarterly'!$N$54=0,"",'Timeliness Quarterly'!$N$54)) -> 
B63: ='Timeliness Quarterly'!$H$46 -> 4/1/15 - 6/30/15 | C63: ='Timeliness Quarterly'!$D$54 -> 0.8 | D63: ='Timeliness Quarterly'!$E$54 -> 3 | E63: =IF(IFERROR('Timeliness Quarterly'!H$56,"error")="error","",IF('Timeliness Quarterly'!H$56<'Timeliness Quarterly'!$D$54,'Timeliness Quarterly'!H$56,"")) ->  | F63: =IF(IFERROR('Timeliness Quarterly'!$O$54,"error")="error","",IF('Timeliness Quarterly'!$O$54=0,"",'Timeliness Quarterly'!$O$54)) ->  | G63: =IF(IFERROR('Timeliness Quarterly'!$P$54,"error")="error","",IF('Timeliness Quarterly'!$P$54=0,"",'Timeliness Quarterly'!$P$54)) -> 
B64: ='Timeliness Quarterly'!$I$46 -> 7/1/15 - 9/30/15 | C64: ='Timeliness Quarterly'!$D$54 -> 0.8 | D64: ='Timeliness Quarterly'!$E$54 -> 3 | E64: =IF(IFERROR('Timeliness Quarterly'!I$56,"error")="error","",IF('Timeliness Quarterly'!I$56<'Timeliness Quarterly'!$D$54,'Timeliness Quarterly'!I$56,"")) ->  | F64: =IF(IFERROR('Timeliness Quarterly'!$Q$54,"error")="error","",IF('Timeliness Quarterly'!$Q$54=0,"",'Timeliness Quarterly'!$Q$54)) ->  | G64: =IF(IFERROR('Timeliness Quarterly'!$R$54,"error")="error","",IF('Timeliness Quarterly'!$R$54=0,"",'Timeliness Quarterly'!$R$54)) -> 
A65: Criminal Traffic | B65: ='Timeliness Quarterly'!$F$46 -> 10/1/14 - 12/31/14 | C65: ='Timeliness Quarterly'!$D$57 -> 0.8 | D65: ='Timeliness Quarterly'!$E$57 -> 3 | E65: =IF(IFERROR('Timeliness Quarterly'!F$59,"error")="error","",IF('Timeliness Quarterly'!F$59<'Timeliness Quarterly'!$D$57,'Timeliness Quarterly'!F$59,"")) ->  | F65: =IF(IFERROR('Timeliness Quarterly'!$K$57,"error")="error","",IF('Timeliness Quarterly'!$K$57=0,"",'Timeliness Quarterly'!$K$57)) ->  | G65: =IF(IFERROR('Timeliness Quarterly'!$L$57,"error")="error","",IF('Timeliness Quarterly'!$L$57=0,"",'Timeliness Quarterly'!$L$57)) -> 
B66: ='Timeliness Quarterly'!$G$46 -> 1/1/15 - 3/31/15 | C66: ='Timeliness Quarterly'!$D$57 -> 0.8 | D66: ='Timeliness Quarterly'!$E$57 -> 3 | E66: =IF(IFERROR('Timeliness Quarterly'!G$59,"error")="error","",IF('Timeliness Quarterly'!G$59<'Timeliness Quarterly'!$D$57,'Timeliness Quarterly'!G$59,"")) ->  | F66: =IF(IFERROR('Timeliness Quarterly'!$M$57,"error")="error","",IF('Timeliness Quarterly'!$M$57=0,"",'Timeliness Quarterly'!$M$57)) ->  | G66: =IF(IFERROR('Timeliness Quarterly'!$N$57,"error")="error","",IF('Timeliness Quarterly'!$N$57=0,"",'Timeliness Quarterly'!$N$57)) -> 
B67: ='Timeliness Quarterly'!$H$46 -> 4/1/15 - 6/30/15 | C67: ='Timeliness Quarterly'!$D$57 -> 0.8 | D67: ='Timeliness Quarterly'!$E$57 -> 3 | E67: =IF(IFERROR('Timeliness Quarterly'!H$59,"error")="error","",IF('Timeliness Quarterly'!H$59<'Timeliness Quarterly'!$D$57,'Timeliness Quarterly'!H$59,"")) ->  | F67: =IF(IFERROR('Timeliness Quarterly'!$O$57,"error")="error","",IF('Timeliness Quarterly'!$O$57=0,"",'Timeliness Quarterly'!$O$57)) ->  | G67: =IF(IFERROR('Timeliness Quarterly'!$P$57,"error")="error","",IF('Timeliness Quarterly'!$P$57=0,"",'Timeliness Quarterly'!$P$57)) -> 
B68: ='Timeliness Quarterly'!$I$46 -> 7/1/15 - 9/30/15 | C68: ='Timeliness Quarterly'!$D$57 -> 0.8 | D68: ='Timeliness Quarterly'!$E$57 -> 3 | E68: =IF(IFERROR('Timeliness Quarterly'!I$59,"error")="error","",IF('Timeliness Quarterly'!I$59<'Timeliness Quarterly'!$D$57,'Timeliness Quarterly'!I$59,"")) ->  | F68: =IF(IFERROR('Timeliness Quarterly'!$Q$57,"error")="error","",IF('Timeliness Quarterly'!$Q$57=0,"",'Timeliness Quarterly'!$Q$57)) ->  | G68: =IF(IFERROR('Timeliness Quarterly'!$R$57,"error")="error","",IF('Timeliness Quarterly'!$R$57=0,"",'Timeliness Quarterly'!$R$57)) -> 
A69: Circuit Civil | B69: ='Timeliness Quarterly'!$F$46 -> 10/1/14 - 12/31/14 | C69: ='Timeliness Quarterly'!$D$61 -> 0.8 | D69: ='Timeliness Quarterly'!$E$61 -> 3 | E69: =IF(IFERROR('Timeliness Quarterly'!F$63,"error")="error","",IF('Timeliness Quarterly'!F$63<'Timeliness Quarterly'!$D$61,'Timeliness Quarterly'!F$63,"")) ->  | F69: =IF(IFERROR('Timeliness Quarterly'!$K$61,"error")="error","",IF('Timeliness Quarterly'!$K$61=0,"",'Timeliness Quarterly'!$K$61)) ->  | G69: =IF(IFERROR('Timeliness Quarterly'!$L$61,"error")="error","",IF('Timeliness Quarterly'!$L$61=0,"",'Timeliness Quarterly'!$L$61)) -> 
B70: ='Timeliness Quarterly'!$G$46 -> 1/1/15 - 3/31/15 | C70: ='Timeliness Quarterly'!$D$61 -> 0.8 | D70: ='Timeliness Quarterly'!$E$61 -> 3 | E70: =IF(IFERROR('Timeliness Quarterly'!G$63,"error")="error","",IF('Timeliness Quarterly'!G$63<'Timeliness Quarterly'!$D$61,'Timeliness Quarterly'!G$63,"")) ->  | F70: =IF(IFERROR('Timeliness Quarterly'!$M$61,"error")="error","",IF('Timeliness Quarterly'!$M$61=0,"",'Timeliness Quarterly'!$M$61)) ->  | G70: =IF(IFERROR('Timeliness Quarterly'!$N$61,"error")="error","",IF('Timeliness Quarterly'!$N$61=0,"",'Timeliness Quarterly'!$N$61)) -> 
B71: ='Timeliness Quarterly'!$H$46 -> 4/1/15 - 6/30/15 | C71: ='Timeliness Quarterly'!$D$61 -> 0.8 | D71: ='Timeliness Quarterly'!$E$61 -> 3 | E71: =IF(IFERROR('Timeliness Quarterly'!H$63,"error")="error","",IF('Timeliness Quarterly'!H$63<'Timeliness Quarterly'!$D$61,'Timeliness Quarterly'!H$63,"")) ->  | F71: =IF(IFERROR('Timeliness Quarterly'!$O$61,"error")="error","",IF('Timeliness Quarterly'!$O$61=0,"",'Timeliness Quarterly'!$O$61)) ->  | G71: =IF(IFERROR('Timeliness Quarterly'!$P$61,"error")="error","",IF('Timeliness Quarterly'!$P$61=0,"",'Timeliness Quarterly'!$P$61)) -> 
B72: ='Timeliness Quarterly'!$I$46 -> 7/1/15 - 9/30/15 | C72: ='Timeliness Quarterly'!$D$61 -> 0.8 | D72: ='Timeliness Quarterly'!$E$61 -> 3 | E72: =IF(IFERROR('Timeliness Quarterly'!I$63,"error")="error","",IF('Timeliness Quarterly'!I$63<'Timeliness Quarterly'!$D$61,'Timeliness Quarterly'!I$63,"")) ->  | F72: =IF(IFERROR('Timeliness Quarterly'!$Q$61,"error")="error","",IF('Timeliness Quarterly'!$Q$61=0,"",'Timeliness Quarterly'!$Q$61)) ->  | G72: =IF(IFERROR('Timeliness Quarterly'!$R$61,"error")="error","",IF('Timeliness Quarterly'!$R$61=0,"",'Timeliness Quarterly'!$R$61)) -> 
A73: County Civil | B73: ='Timeliness Quarterly'!$F$46 -> 10/1/14 - 12/31/14 | C73: ='Timeliness Quarterly'!$D$64 -> 0.8 | D73: ='Timeliness Quarterly'!$E$64 -> 3 | E73: =IF(IFERROR('Timeliness Quarterly'!F$66,"error")="error","",IF('Timeliness Quarterly'!F$66<'Timeliness Quarterly'!$D$64,'Timeliness Quarterly'!F$66,"")) ->  | F73: =IF(IFERROR('Timeliness Quarterly'!$K$64,"error")="error","",IF('Timeliness Quarterly'!$K$64=0,"",'Timeliness Quarterly'!$K$64)) ->  | G73: =IF(IFERROR('Timeliness Quarterly'!$L$64,"error")="error","",IF('Timeliness Quarterly'!$L$64=0,"",'Timeliness Quarterly'!$L$64)) -> 
B74: ='Timeliness Quarterly'!$G$46 -> 1/1/15 - 3/31/15 | C74: ='Timeliness Quarterly'!$D$64 -> 0.8 | D74: ='Timeliness Quarterly'!$E$64 -> 3 | E74: =IF(IFERROR('Timeliness Quarterly'!G$66,"error")="error","",IF('Timeliness Quarterly'!G$66<'Timeliness Quarterly'!$D$64,'Timeliness Quarterly'!G$66,"")) ->  | F74: =IF(IFERROR('Timeliness Quarterly'!$M$64,"error")="error","",IF('Timeliness Quarterly'!$M$64=0,"",'Timeliness Quarterly'!$M$64)) ->  | G74: =IF(IFERROR('Timeliness Quarterly'!$N$64,"error")="error","",IF('Timeliness Quarterly'!$N$64=0,"",'Timeliness Quarterly'!$N$64)) -> 
B75: ='Timeliness Quarterly'!$H$46 -> 4/1/15 - 6/30/15 | C75: ='Timeliness Quarterly'!$D$64 -> 0.8 | D75: ='Timeliness Quarterly'!$E$64 -> 3 | E75: =IF(IFERROR('Timeliness Quarterly'!H$66,"error")="error","",IF('Timeliness Quarterly'!H$66<'Timeliness Quarterly'!$D$64,'Timeliness Quarterly'!H$66,"")) ->  | F75: =IF(IFERROR('Timeliness Quarterly'!$O$64,"error")="error","",IF('Timeliness Quarterly'!$O$64=0,"",'Timeliness Quarterly'!$O$64)) ->  | G75: =IF(IFERROR('Timeliness Quarterly'!$P$64,"error")="error","",IF('Timeliness Quarterly'!$P$64=0,"",'Timeliness Quarterly'!$P$64)) -> 
B76: ='Timeliness Quarterly'!$I$46 -> 7/1/15 - 9/30/15 | C76: ='Timeliness Quarterly'!$D$64 -> 0.8 | D76: ='Timeliness Quarterly'!$E$64 -> 3 | E76: =IF(IFERROR('Timeliness Quarterly'!I$66,"error")="error","",IF('Timeliness Quarterly'!I$66<'Timeliness Quarterly'!$D$64,'Timeliness Quarterly'!I$66,"")) ->  | F76: =IF(IFERROR('Timeliness Quarterly'!$Q$64,"error")="error","",IF('Timeliness Quarterly'!$Q$64=0,"",'Timeliness Quarterly'!$Q$64)) ->  | G76: =IF(IFERROR('Timeliness Quarterly'!$R$64,"error")="error","",IF('Timeliness Quarterly'!$R$64=0,"",'Timeliness Quarterly'!$R$64)) -> 
A77: Civil Traffic | B77: ='Timeliness Quarterly'!$F$46 -> 10/1/14 - 12/31/14 | C77: ='Timeliness Quarterly'!$D$67 -> 0.8 | D77: ='Timeliness Quarterly'!$E$67 -> 4 | E77: =IF(IFERROR('Timeliness Quarterly'!F$69,"error")="error","",IF('Timeliness Quarterly'!F$69<'Timeliness Quarterly'!$D$67,'Timeliness Quarterly'!F$69,"")) ->  | F77: =IF(IFERROR('Timeliness Quarterly'!$K$67,"error")="error","",IF('Timeliness Quarterly'!$K$67=0,"",'Timeliness Quarterly'!$K$67)) ->  | G77: =IF(IFERROR('Timeliness Quarterly'!$L$67,"error")="error","",IF('Timeliness Quarterly'!$L$67=0,"",'Timeliness Quarterly'!$L$67)) -> 
B78: ='Timeliness Quarterly'!$G$46 -> 1/1/15 - 3/31/15 | C78: ='Timeliness Quarterly'!$D$67 -> 0.8 | D78: ='Timeliness Quarterly'!$E$67 -> 4 | E78: =IF(IFERROR('Timeliness Quarterly'!G$69,"error")="error","",IF('Timeliness Quarterly'!G$69<'Timeliness Quarterly'!$D$67,'Timeliness Quarterly'!G$69,"")) ->  | F78: =IF(IFERROR('Timeliness Quarterly'!$M$67,"error")="error","",IF('Timeliness Quarterly'!$M$67=0,"",'Timeliness Quarterly'!$M$67)) ->  | G78: =IF(IFERROR('Timeliness Quarterly'!$N$67,"error")="error","",IF('Timeliness Quarterly'!$N$67=0,"",'Timeliness Quarterly'!$N$67)) -> 
B79: ='Timeliness Quarterly'!$H$46 -> 4/1/15 - 6/30/15 | C79: ='Timeliness Quarterly'!$D$67 -> 0.8 | D79: ='Timeliness Quarterly'!$E$67 -> 4 | E79: =IF(IFERROR('Timeliness Quarterly'!H$69,"error")="error","",IF('Timeliness Quarterly'!H$69<'Timeliness Quarterly'!$D$67,'Timeliness Quarterly'!H$69,"")) ->  | F79: =IF(IFERROR('Timeliness Quarterly'!$O$67,"error")="error","",IF('Timeliness Quarterly'!$O$67=0,"",'Timeliness Quarterly'!$O$67)) ->  | G79: =IF(IFERROR('Timeliness Quarterly'!$P$67,"error")="error","",IF('Timeliness Quarterly'!$P$67=0,"",'Timeliness Quarterly'!$P$67)) -> 
B80: ='Timeliness Quarterly'!$I$46 -> 7/1/15 - 9/30/15 | C80: ='Timeliness Quarterly'!$D$67 -> 0.8 | D80: ='Timeliness Quarterly'!$E$67 -> 4 | E80: =IF(IFERROR('Timeliness Quarterly'!I$69,"error")="error","",IF('Timeliness Quarterly'!I$69<'Timeliness Quarterly'!$D$67,'Timeliness Quarterly'!I$69,"")) ->  | F80: =IF(IFERROR('Timeliness Quarterly'!$Q$67,"error")="error","",IF('Timeliness Quarterly'!$Q$67=0,"",'Timeliness Quarterly'!$Q$67)) ->  | G80: =IF(IFERROR('Timeliness Quarterly'!$R$67,"error")="error","",IF('Timeliness Quarterly'!$R$67=0,"",'Timeliness Quarterly'!$R$67)) -> 
A81: Probate | B81: ='Timeliness Quarterly'!$F$46 -> 10/1/14 - 12/31/14 | C81: ='Timeliness Quarterly'!$D$70 -> 0.8 | D81: ='Timeliness Quarterly'!$E$70 -> 3 | E81: =IF(IFERROR('Timeliness Quarterly'!F$72,"error")="error","",IF('Timeliness Quarterly'!F$72<'Timeliness Quarterly'!$D$70,'Timeliness Quarterly'!F$72,"")) ->  | F81: =IF(IFERROR('Timeliness Quarterly'!$K$70,"error")="error","",IF('Timeliness Quarterly'!$K$70=0,"",'Timeliness Quarterly'!$K$70)) ->  | G81: =IF(IFERROR('Timeliness Quarterly'!$L$70,"error")="error","",IF('Timeliness Quarterly'!$L$70=0,"",'Timeliness Quarterly'!$L$70)) -> 
B82: ='Timeliness Quarterly'!$G$46 -> 1/1/15 - 3/31/15 | C82: ='Timeliness Quarterly'!$D$70 -> 0.8 | D82: ='Timeliness Quarterly'!$E$70 -> 3 | E82: =IF(IFERROR('Timeliness Quarterly'!G$72,"error")="error","",IF('Timeliness Quarterly'!G$72<'Timeliness Quarterly'!$D$70,'Timeliness Quarterly'!G$72,"")) ->  | F82: =IF(IFERROR('Timeliness Quarterly'!$M$70,"error")="error","",IF('Timeliness Quarterly'!$M$70=0,"",'Timeliness Quarterly'!$M$70)) ->  | G82: =IF(IFERROR('Timeliness Quarterly'!$N$70,"error")="error","",IF('Timeliness Quarterly'!$N$70=0,"",'Timeliness Quarterly'!$N$70)) -> 
B83: ='Timeliness Quarterly'!$H$46 -> 4/1/15 - 6/30/15 | C83: ='Timeliness Quarterly'!$D$70 -> 0.8 | D83: ='Timeliness Quarterly'!$E$70 -> 3 | E83: =IF(IFERROR('Timeliness Quarterly'!H$72,"error")="error","",IF('Timeliness Quarterly'!H$72<'Timeliness Quarterly'!$D$70,'Timeliness Quarterly'!H$72,"")) ->  | F83: =IF(IFERROR('Timeliness Quarterly'!$O$70,"error")="error","",IF('Timeliness Quarterly'!$O$70=0,"",'Timeliness Quarterly'!$O$70)) ->  | G83: =IF(IFERROR('Timeliness Quarterly'!$P$70,"error")="error","",IF('Timeliness Quarterly'!$P$70=0,"",'Timeliness Quarterly'!$P$70)) -> 
B84: ='Timeliness Quarterly'!$I$46 -> 7/1/15 - 9/30/15 | C84: ='Timeliness Quarterly'!$D$70 -> 0.8 | D84: ='Timeliness Quarterly'!$E$70 -> 3 | E84: =IF(IFERROR('Timeliness Quarterly'!I$72,"error")="error","",IF('Timeliness Quarterly'!I$72<'Timeliness Quarterly'!$D$70,'Timeliness Quarterly'!I$72,"")) ->  | F84: =IF(IFERROR('Timeliness Quarterly'!$Q$70,"error")="error","",IF('Timeliness Quarterly'!$Q$70=0,"",'Timeliness Quarterly'!$Q$70)) ->  | G84: =IF(IFERROR('Timeliness Quarterly'!$R$70,"error")="error","",IF('Timeliness Quarterly'!$R$70=0,"",'Timeliness Quarterly'!$R$70)) -> 
A85: Family | B85: ='Timeliness Quarterly'!$F$46 -> 10/1/14 - 12/31/14 | C85: ='Timeliness Quarterly'!$D$73 -> 0.8 | D85: ='Timeliness Quarterly'!$E$73 -> 3 | E85: =IF(IFERROR('Timeliness Quarterly'!F$75,"error")="error","",IF('Timeliness Quarterly'!F$75<'Timeliness Quarterly'!$D$73,'Timeliness Quarterly'!F$75,"")) ->  | F85: =IF(IFERROR('Timeliness Quarterly'!$K$73,"error")="error","",IF('Timeliness Quarterly'!$K$73=0,"",'Timeliness Quarterly'!$K$73)) ->  | G85: =IF(IFERROR('Timeliness Quarterly'!$L$73,"error")="error","",IF('Timeliness Quarterly'!$L$73=0,"",'Timeliness Quarterly'!$L$73)) -> 
B86: ='Timeliness Quarterly'!$G$46 -> 1/1/15 - 3/31/15 | C86: ='Timeliness Quarterly'!$D$73 -> 0.8 | D86: ='Timeliness Quarterly'!$E$73 -> 3 | E86: =IF(IFERROR('Timeliness Quarterly'!G$75,"error")="error","",IF('Timeliness Quarterly'!G$75<'Timeliness Quarterly'!$D$73,'Timeliness Quarterly'!G$75,"")) ->  | F86: =IF(IFERROR('Timeliness Quarterly'!$M$73,"error")="error","",IF('Timeliness Quarterly'!$M$73=0,"",'Timeliness Quarterly'!$M$73)) ->  | G86: =IF(IFERROR('Timeliness Quarterly'!$N$73,"error")="error","",IF('Timeliness Quarterly'!$N$73=0,"",'Timeliness Quarterly'!$N$73)) -> 
B87: ='Timeliness Quarterly'!$H$46 -> 4/1/15 - 6/30/15 | C87: ='Timeliness Quarterly'!$D$73 -> 0.8 | D87: ='Timeliness Quarterly'!$E$73 -> 3 | E87: =IF(IFERROR('Timeliness Quarterly'!H$75,"error")="error","",IF('Timeliness Quarterly'!H$75<'Timeliness Quarterly'!$D$73,'Timeliness Quarterly'!H$75,"")) ->  | F87: =IF(IFERROR('Timeliness Quarterly'!$O$73,"error")="error","",IF('Timeliness Quarterly'!$O$73=0,"",'Timeliness Quarterly'!$O$73)) ->  | G87: =IF(IFERROR('Timeliness Quarterly'!$P$73,"error")="error","",IF('Timeliness Quarterly'!$P$73=0,"",'Timeliness Quarterly'!$P$73)) -> 
B88: ='Timeliness Quarterly'!$I$46 -> 7/1/15 - 9/30/15 | C88: ='Timeliness Quarterly'!$D$73 -> 0.8 | D88: ='Timeliness Quarterly'!$E$73 -> 3 | E88: =IF(IFERROR('Timeliness Quarterly'!I$75,"error")="error","",IF('Timeliness Quarterly'!I$75<'Timeliness Quarterly'!$D$73,'Timeliness Quarterly'!I$75,"")) ->  | F88: =IF(IFERROR('Timeliness Quarterly'!$Q$73,"error")="error","",IF('Timeliness Quarterly'!$Q$73=0,"",'Timeliness Quarterly'!$Q$73)) ->  | G88: =IF(IFERROR('Timeliness Quarterly'!$R$73,"error")="error","",IF('Timeliness Quarterly'!$R$73=0,"",'Timeliness Quarterly'!$R$73)) -> 
A89: Juvenile Dependency | B89: ='Timeliness Quarterly'!$F$46 -> 10/1/14 - 12/31/14 | C89: ='Timeliness Quarterly'!$D$76 -> 0.8 | D89: ='Timeliness Quarterly'!$E$76 -> 3 | E89: =IF(IFERROR('Timeliness Quarterly'!F$78,"error")="error","",IF('Timeliness Quarterly'!F$78<'Timeliness Quarterly'!$D$76,'Timeliness Quarterly'!F$78,"")) ->  | F89: =IF(IFERROR('Timeliness Quarterly'!$K$76,"error")="error","",IF('Timeliness Quarterly'!$K$76=0,"",'Timeliness Quarterly'!$K$76)) ->  | G89: =IF(IFERROR('Timeliness Quarterly'!$L$76,"error")="error","",IF('Timeliness Quarterly'!$L$76=0,"",'Timeliness Quarterly'!$L$76)) -> 
B90: ='Timeliness Quarterly'!$G$46 -> 1/1/15 - 3/31/15 | C90: ='Timeliness Quarterly'!$D$76 -> 0.8 | D90: ='Timeliness Quarterly'!$E$76 -> 3 | E90: =IF(IFERROR('Timeliness Quarterly'!G$78,"error")="error","",IF('Timeliness Quarterly'!G$78<'Timeliness Quarterly'!$D$76,'Timeliness Quarterly'!G$78,"")) ->  | F90: =IF(IFERROR('Timeliness Quarterly'!$M$76,"error")="error","",IF('Timeliness Quarterly'!$M$76=0,"",'Timeliness Quarterly'!$M$76)) ->  | G90: =IF(IFERROR('Timeliness Quarterly'!$N$76,"error")="error","",IF('Timeliness Quarterly'!$N$76=0,"",'Timeliness Quarterly'!$N$76)) -> 
B91: ='Timeliness Quarterly'!$H$46 -> 4/1/15 - 6/30/15 | C91: ='Timeliness Quarterly'!$D$76 -> 0.8 | D91: ='Timeliness Quarterly'!$E$76 -> 3 | E91: =IF(IFERROR('Timeliness Quarterly'!H$78,"error")="error","",IF('Timeliness Quarterly'!H$78<'Timeliness Quarterly'!$D$76,'Timeliness Quarterly'!H$78,"")) ->  | F91: =IF(IFERROR('Timeliness Quarterly'!$O$76,"error")="error","",IF('Timeliness Quarterly'!$O$76=0,"",'Timeliness Quarterly'!$O$76)) ->  | G91: =IF(IFERROR('Timeliness Quarterly'!$P$76,"error")="error","",IF('Timeliness Quarterly'!$P$76=0,"",'Timeliness Quarterly'!$P$76)) -> 
B92: ='Timeliness Quarterly'!$I$46 -> 7/1/15 - 9/30/15 | C92: ='Timeliness Quarterly'!$D$76 -> 0.8 | D92: ='Timeliness Quarterly'!$E$76 -> 3 | E92: =IF(IFERROR('Timeliness Quarterly'!I$78,"error")="error","",IF('Timeliness Quarterly'!I$78<'Timeliness Quarterly'!$D$76,'Timeliness Quarterly'!I$78,"")) ->  | F92: =IF(IFERROR('Timeliness Quarterly'!$Q$76,"error")="error","",IF('Timeliness Quarterly'!$Q$76=0,"",'Timeliness Quarterly'!$Q$76)) ->  | G92: =IF(IFERROR('Timeliness Quarterly'!$R$76,"error")="error","",IF('Timeliness Quarterly'!$R$76=0,"",'Timeliness Quarterly'!$R$76)) -> 
